Workbook

Sheet INPUT NOTA
A1: 3 | C1: NO =
B2: NOTA KONTAN | E2: Kepada Yth = | G2: =IF(ISERROR(VLOOKUP(D1,tagname,2,FALSE)),"",VLOOKUP(D1,tagname,2,FALSE)) -> 
E3: ALAMAT = | G3: =IF(ISERROR(VLOOKUP(D1,tagname,3,FALSE)),"",VLOOKUP(D1,tagname,3,FALSE)) -> 
A5: CODE | B5: NAMA BARANG | C5: QUANTITY | E5: HARGA | F5: DISC | G5: SUB TOTAL
B6: =IF(ISERROR(VLOOKUP(A6,CODE,2,FALSE)),"",(VLOOKUP(A6,CODE,2,FALSE))) ->  | D6: =IF(ISERROR(VLOOKUP(A6,CODE,5,FALSE)),"",(VLOOKUP(A6,CODE,5,FALSE))) ->  | E6: =IF(ISERROR(VLOOKUP(A6,CODE,IF(D6="PCS",7,IF(D6="LTR",7,4)),FALSE)),"",VLOOKUP(A6,CODE,IF(D6="PCS",7,IF(D6="LTR",7,4)),FALSE)) ->  | G6: =IF(ISERROR((C6*E6)-(C6*E6)*F6),"",((C6*E6)-(C6*E6)*F6)) -> 
D7: =IF(ISERROR(VLOOKUP(A7,CODE,5,FALSE)),"",(VLOOKUP(A7,CODE,5,FALSE))) ->  | E7: =IF(ISERROR(VLOOKUP(A7,CODE,IF(D7="PCS",7,IF(D7="LTR",7,4)),FALSE)),"",VLOOKUP(A7,CODE,IF(D7="PCS",7,IF(D7="LTR",7,4)),FALSE)) ->  | G7: =IF(ISERROR((C7*E7)-(C7*E7)*F7),"",((C7*E7)-(C7*E7)*F7)) -> 
D8: =IF(ISERROR(VLOOKUP(A8,CODE,5,FALSE)),"",(VLOOKUP(A8,CODE,5,FALSE))) ->  | E8: =IF(ISERROR(VLOOKUP(A8,CODE,IF(D8="PCS",7,IF(D8="LTR",7,4)),FALSE)),"",VLOOKUP(A8,CODE,IF(D8="PCS",7,IF(D8="LTR",7,4)),FALSE)) ->  | G8: =IF(ISERROR((C8*E8)-(C8*E8)*F8),"",((C8*E8)-(C8*E8)*F8)) -> 
D9: =IF(ISERROR(VLOOKUP(A9,CODE,5,FALSE)),"",(VLOOKUP(A9,CODE,5,FALSE))) ->  | E9: =IF(ISERROR(VLOOKUP(A9,CODE,IF(D9="PCS",7,IF(D9="LTR",7,4)),FALSE)),"",VLOOKUP(A9,CODE,IF(D9="PCS",7,IF(D9="LTR",7,4)),FALSE)) -> 
D10: =IF(ISERROR(VLOOKUP(A10,CODE,5,FALSE)),"",(VLOOKUP(A10,CODE,5,FALSE))) ->  | E10: =IF(ISERROR(VLOOKUP(A10,CODE,IF(D10="PCS",7,IF(D10="LTR",7,4)),FALSE)),"",VLOOKUP(A10,CODE,IF(D10="PCS",7,IF(D10="LTR",7,4)),FALSE)) -> 
D11: =IF(ISERROR(VLOOKUP(A11,CODE,5,FALSE)),"",(VLOOKUP(A11,CODE,5,FALSE))) ->  | E11: =IF(ISERROR(VLOOKUP(A11,CODE,IF(D11="PCS",7,IF(D11="LTR",7,4)),FALSE)),"",VLOOKUP(A11,CODE,IF(D11="PCS",7,IF(D11="LTR",7,4)),FALSE)) -> 
D12: =IF(ISERROR(VLOOKUP(A12,CODE,5,FALSE)),"",(VLOOKUP(A12,CODE,5,FALSE))) ->  | E12: =IF(ISERROR(VLOOKUP(A12,CODE,IF(D12="PCS",7,IF(D12="LTR",7,4)),FALSE)),"",VLOOKUP(A12,CODE,IF(D12="PCS",7,IF(D12="LTR",7,4)),FALSE)) -> 
D13: =IF(ISERROR(VLOOKUP(A13,CODE,5,FALSE)),"",(VLOOKUP(A13,CODE,5,FALSE))) ->  | E13: =IF(ISERROR(VLOOKUP(A13,CODE,IF(D13="PCS",7,IF(D13="LTR",7,4)),FALSE)),"",VLOOKUP(A13,CODE,IF(D13="PCS",7,IF(D13="LTR",7,4)),FALSE)) -> 
D14: =IF(ISERROR(VLOOKUP(A14,CODE,5,FALSE)),"",(VLOOKUP(A14,CODE,5,FALSE))) ->  | E14: =IF(ISERROR(VLOOKUP(A14,CODE,IF(D14="PCS",7,IF(D14="LTR",7,4)),FALSE)),"",VLOOKUP(A14,CODE,IF(D14="PCS",7,IF(D14="LTR",7,4)),FALSE)) -> 
D15: =IF(ISERROR(VLOOKUP(A15,CODE,5,FALSE)),"",(VLOOKUP(A15,CODE,5,FALSE))) ->  | E15: =IF(ISERROR(VLOOKUP(A15,CODE,IF(D15="PCS",7,IF(D15="LTR",7,4)),FALSE)),"",VLOOKUP(A15,CODE,IF(D15="PCS",7,IF(D15="LTR",7,4)),FALSE)) -> 
D16: =IF(ISERROR(VLOOKUP(A16,CODE,5,FALSE)),"",(VLOOKUP(A16,CODE,5,FALSE))) ->  | E16: =IF(ISERROR(VLOOKUP(A16,CODE,IF(D16="PCS",7,IF(D16="LTR",7,4)),FALSE)),"",VLOOKUP(A16,CODE,IF(D16="PCS",7,IF(D16="LTR",7,4)),FALSE)) -> 
D17: =IF(ISERROR(VLOOKUP(A17,CODE,5,FALSE)),"",(VLOOKUP(A17,CODE,5,FALSE))) ->  | E17: =IF(ISERROR(VLOOKUP(A17,CODE,IF(D17="PCS",7,IF(D17="LTR",7,4)),FALSE)),"",VLOOKUP(A17,CODE,IF(D17="PCS",7,IF(D17="LTR",7,4)),FALSE)) -> 
D18: =IF(ISERROR(VLOOKUP(A18,CODE,5,FALSE)),"",(VLOOKUP(A18,CODE,5,FALSE))) ->  | E18: =IF(ISERROR(VLOOKUP(A18,CODE,IF(D18="PCS",7,IF(D18="LTR",7,4)),FALSE)),"",VLOOKUP(A18,CODE,IF(D18="PCS",7,IF(D18="LTR",7,4)),FALSE)) -> 
D19: =IF(ISERROR(VLOOKUP(A19,CODE,5,FALSE)),"",(VLOOKUP(A19,CODE,5,FALSE))) ->  | E19: =IF(ISERROR(VLOOKUP(A19,CODE,IF(D19="PCS",7,IF(D19="LTR",7,4)),FALSE)),"",VLOOKUP(A19,CODE,IF(D19="PCS",7,IF(D19="LTR",7,4)),FALSE)) -> 
D20: =IF(ISERROR(VLOOKUP(A20,CODE,5,FALSE)),"",(VLOOKUP(A20,CODE,5,FALSE))) ->  | E20: =IF(ISERROR(VLOOKUP(A20,CODE,IF(D20="PCS",7,IF(D20="LTR",7,4)),FALSE)),"",VLOOKUP(A20,CODE,IF(D20="PCS",7,IF(D20="LTR",7,4)),FALSE)) -> 
D21: =IF(ISERROR(VLOOKUP(A21,CODE,5,FALSE)),"",(VLOOKUP(A21,CODE,5,FALSE))) ->  | E21: =IF(ISERROR(VLOOKUP(A21,CODE,IF(D21="PCS",7,IF(D21="LTR",7,4)),FALSE)),"",VLOOKUP(A21,CODE,IF(D21="PCS",7,IF(D21="LTR",7,4)),FALSE)) -> 
E22: TOTAL | G22: =SUM(G6:G21) -> 0
B23: PENERIMA

Sheet CETAK NOTA
A1: 3 | C1: NO = | D1: 3
B2: NOTA KONTAN | E2: Kepada Yth = | G2: =IF(ISERROR(VLOOKUP(D1,tagname,2,FALSE)),"",VLOOKUP(D1,tagname,2,FALSE)) -> SUMBER HIDUP | H2: FROM | I2: 1
E3: ALAMAT = | G3: =IF(ISERROR(VLOOKUP(D1,tagname,3,FALSE)),"",VLOOKUP(D1,tagname,3,FALSE)) -> JATIMANUNGGAL | H3: TO | I3: 2
H4: COPIES | I4: 1
A5: CODE | B5: NAMA BARANG | C5: QUANTITY | E5: HARGA | F5: DISC | G5: SUB TOTAL
A6: 1 | B6: =IF(ISERROR(VLOOKUP(A6,CODE,2,FALSE)),"",(VLOOKUP(A6,CODE,2,FALSE))) -> BUKU TULIS | C6: 3 | D6: =IF(ISERROR(VLOOKUP(A6,CODE,5,FALSE)),"",(VLOOKUP(A6,CODE,5,FALSE))) -> DOS | E6: =IF(ISERROR(VLOOKUP(A6,CODE,IF(D6="PCS",7,IF(D6="LTR",7,4)),FALSE)),"",VLOOKUP(A6,CODE,IF(D6="PCS",7,IF(D6="LTR",7,4)),FALSE)) -> 582000 | G6: =IF(ISERROR((C6*E6)-(C6*E6)*F6),"",((C6*E6)-(C6*E6)*F6)) -> 1746000
G7: =IF(ISERROR((C7*E7)-(C7*E7)*F7),"",((C7*E7)-(C7*E7)*F7)) -> 
G8: =IF(ISERROR((C8*E8)-(C8*E8)*F8),"",((C8*E8)-(C8*E8)*F8)) -> 
E22: TOTAL | G22: =SUM(G6:G21) -> 1746000
B23: PENERIMA
A26: 2 | C26: NO = | D26: 1
B27: NOTA KONTAN | E27: Kepada Yth = | G27: =IF(ISERROR(VLOOKUP(D26,tagname,2,FALSE)),"",VLOOKUP(D26,tagname,2,FALSE)) -> SUMBER SUKSES
E28: ALAMAT = | G28: =IF(ISERROR(VLOOKUP(D26,tagname,3,FALSE)),"",VLOOKUP(D26,tagname,3,FALSE)) -> JATIARUM
A30: CODE | B30: NAMA BARANG | C30: QUANTITY | E30: HARGA | F30: DISC | G30: SUB TOTAL
A31: 1 | B31: =IF(ISERROR(VLOOKUP(A31,CODE,2,FALSE)),"",(VLOOKUP(A31,CODE,2,FALSE))) -> BUKU TULIS | C31: 1 | D31: =IF(ISERROR(VLOOKUP(A31,CODE,5,FALSE)),"",(VLOOKUP(A31,CODE,5,FALSE))) -> DOS | E31: =IF(ISERROR(VLOOKUP(A31,CODE,IF(D31="PCS",7,IF(D31="LTR",7,4)),FALSE)),"",VLOOKUP(A31,CODE,IF(D31="PCS",7,IF(D31="LTR",7,4)),FALSE)) -> 582000 | G31: =IF(ISERROR((C31*E31)-(C31*E31)*F31),"",((C31*E31)-(C31*E31)*F31)) -> 582000
A32: 2 | B32: PENSIL | C32: 1 | D32: DOS | E32: 655800 | G32: =IF(ISERROR((C32*E32)-(C32*E32)*F32),"",((C32*E32)-(C32*E32)*F32)) -> 655800
A33: 3 | B33: PENGGARIS | C33: 3 | D33: DOS | E33: 532000 | G33: =IF(ISERROR((C33*E33)-(C33*E33)*F33),"",((C33*E33)-(C33*E33)*F33)) -> 1596000
E47: TOTAL | G47: =SUM(G31:G46) -> 2833800
B48: PENERIMA
A51: 1 | C51: NO = | D51: 1
B52: NOTA KONTAN | E52: Kepada Yth = | G52: =IF(ISERROR(VLOOKUP(D51,tagname,2,FALSE)),"",VLOOKUP(D51,tagname,2,FALSE)) -> SUMBER SUKSES
E53: ALAMAT = | G53: =IF(ISERROR(VLOOKUP(D51,tagname,3,FALSE)),"",VLOOKUP(D51,tagname,3,FALSE)) -> JATIARUM
A55: CODE | B55: NAMA BARANG | C55: QUANTITY | E55: HARGA | F55: DISC | G55: SUB TOTAL
A56: 1 | B56: =IF(ISERROR(VLOOKUP(A56,CODE,2,FALSE)),"",(VLOOKUP(A56,CODE,2,FALSE))) -> BUKU TULIS | C56: 1 | D56: =IF(ISERROR(VLOOKUP(A56,CODE,5,FALSE)),"",(VLOOKUP(A56,CODE,5,FALSE))) -> DOS | E56: =IF(ISERROR(VLOOKUP(A56,CODE,IF(D56="PCS",7,IF(D56="LTR",7,4)),FALSE)),"",VLOOKUP(A56,CODE,IF(D56="PCS",7,IF(D56="LTR",7,4)),FALSE)) -> 582000 | G56: =IF(ISERROR((C56*E56)-(C56*E56)*F56),"",((C56*E56)-(C56*E56)*F56)) -> 582000
A57: 4 | B57: PENGHAPUS | C57: 1 | D57: DOS | E57: 529000 | G57: =IF(ISERROR((C57*E57)-(C57*E57)*F57),"",((C57*E57)-(C57*E57)*F57)) -> 529000
A58: 3 | B58: PENGGARIS | C58: 4 | D58: DOS | E58: 532000 | G58: =IF(ISERROR((C58*E58)-(C58*E58)*F58),"",((C58*E58)-(C58*E58)*F58)) -> 2128000
E72: TOTAL | G72: =SUM(G56:G71) -> 3239000
B73: PENERIMA

Sheet REKAP BARANG
A1: CODE | B1: NAMA BARANG | C1: RM/TK | D1: QUANTITY | F1: QUANTITY | H1: DETAIL PERINCIAN | O1: FROM | Q1: TO | S1: COPIES | T1: 1
A2: 1 | B2: =IF(ISERROR(VLOOKUP(A2,CODE,2,FALSE)),"",(VLOOKUP(A2,CODE,2,FALSE))) -> BUKU TULIS | C2: =IF(AND(K2=0,L2=0),"",IF(AND(D2>0,K2>L2),"RM","TK")) ->  | D2: =SUMIFS('CETAK NOTA'!$C$6:$C$21:'CETAK NOTA'!$C$1730:$C$1746,'CETAK NOTA'!$D$6:$D$21:'CETAK NOTA'!$D$1730:$D$1746,E2,'CETAK NOTA'!$B$6:$B$21:'CETAK NOTA'!$B$1730:$B$1746,B2) -> 5 | E2: DOS | F2: =SUMIFS('CETAK NOTA'!$C$6:$C$21:'CETAK NOTA'!$C$1730:$C$1746,'CETAK NOTA'!$D$6:$D$21:'CETAK NOTA'!$D$1730:$D$1746,G2,'CETAK NOTA'!$B$6:$B$21:'CETAK NOTA'!$B$1730:$B$1746,B2) -> 0 | G2: PCS | H2: 3 | I2: 1 | J2: 1
A3: 2 | B3: =IF(ISERROR(VLOOKUP(A3,CODE,2,FALSE)),"",(VLOOKUP(A3,CODE,2,FALSE))) -> PENSIL | D3: =SUMIFS('CETAK NOTA'!$C$6:$C$21:'CETAK NOTA'!$C$1730:$C$1746,'CETAK NOTA'!$D$6:$D$21:'CETAK NOTA'!$D$1730:$D$1746,E3,'CETAK NOTA'!$B$6:$B$21:'CETAK NOTA'!$B$1730:$B$1746,B3) -> 1 | E3: DOS | F3: =SUMIFS('CETAK NOTA'!$C$6:$C$21:'CETAK NOTA'!$C$1730:$C$1746,'CETAK NOTA'!$D$6:$D$21:'CETAK NOTA'!$D$1730:$D$1746,G3,'CETAK NOTA'!$B$6:$B$21:'CETAK NOTA'!$B$1730:$B$1746,B3) -> 0 | G3: PCS | H3: 1
A4: 3 | B4: =IF(ISERROR(VLOOKUP(A4,CODE,2,FALSE)),"",(VLOOKUP(A4,CODE,2,FALSE))) -> PENGGARIS | D4: =SUMIFS('CETAK NOTA'!$C$6:$C$21:'CETAK NOTA'!$C$1730:$C$1746,'CETAK NOTA'!$D$6:$D$21:'CETAK NOTA'!$D$1730:$D$1746,E4,'CETAK NOTA'!$B$6:$B$21:'CETAK NOTA'!$B$1730:$B$1746,B4) -> 7 | E4: DOS | F4: =SUMIFS('CETAK NOTA'!$C$6:$C$21:'CETAK NOTA'!$C$1730:$C$1746,'CETAK NOTA'!$D$6:$D$21:'CETAK NOTA'!$D$1730:$D$1746,G4,'CETAK NOTA'!$B$6:$B$21:'CETAK NOTA'!$B$1730:$B$1746,B4) -> 0 | G4: PCS | H4: 3 | I4: 4
A5: 4 | B5: PENGHAPUS | D5: =SUMIFS('CETAK NOTA'!$C$6:$C$21:'CETAK NOTA'!$C$1730:$C$1746,'CETAK NOTA'!$D$6:$D$21:'CETAK NOTA'!$D$1730:$D$1746,E5,'CETAK NOTA'!$B$6:$B$21:'CETAK NOTA'!$B$1730:$B$1746,B5) -> 1 | E5: DOS | F5: =SUMIFS('CETAK NOTA'!$C$6:$C$21:'CETAK NOTA'!$C$1730:$C$1746,'CETAK NOTA'!$D$6:$D$21:'CETAK NOTA'!$D$1730:$D$1746,G5,'CETAK NOTA'!$B$6:$B$21:'CETAK NOTA'!$B$1730:$B$1746,B5) -> 0 | G5: PCS | H5: 1
A6: 5 | B6: BOLPOIN | D6: =SUMIFS('CETAK NOTA'!$C$6:$C$21:'CETAK NOTA'!$C$1730:$C$1746,'CETAK NOTA'!$D$6:$D$21:'CETAK NOTA'!$D$1730:$D$1746,E6,'CETAK NOTA'!$B$6:$B$21:'CETAK NOTA'!$B$1730:$B$1746,B6) -> 0 | E6: DOS | F6: =SUMIFS('CETAK NOTA'!$C$6:$C$21:'CETAK NOTA'!$C$1730:$C$1746,'CETAK NOTA'!$D$6:$D$21:'CETAK NOTA'!$D$1730:$D$1746,G6,'CETAK NOTA'!$B$6:$B$21:'CETAK NOTA'!$B$1730:$B$1746,B6) -> 0 | G6: PCS
A7: 6 | B7: STAPLER | D7: =SUMIFS('CETAK NOTA'!$C$6:$C$21:'CETAK NOTA'!$C$1730:$C$1746,'CETAK NOTA'!$D$6:$D$21:'CETAK NOTA'!$D$1730:$D$1746,E7,'CETAK NOTA'!$B$6:$B$21:'CETAK NOTA'!$B$1730:$B$1746,B7) -> 0 | E7: DOS | F7: =SUMIFS('CETAK NOTA'!$C$6:$C$21:'CETAK NOTA'!$C$1730:$C$1746,'CETAK NOTA'!$D$6:$D$21:'CETAK NOTA'!$D$1730:$D$1746,G7,'CETAK NOTA'!$B$6:$B$21:'CETAK NOTA'!$B$1730:$B$1746,B7) -> 0 | G7: PCS
A8: 7 | B8: ISOLASI | D8: =SUMIFS('CETAK NOTA'!$C$6:$C$21:'CETAK NOTA'!$C$1730:$C$1746,'CETAK NOTA'!$D$6:$D$21:'CETAK NOTA'!$D$1730:$D$1746,E8,'CETAK NOTA'!$B$6:$B$21:'CETAK NOTA'!$B$1730:$B$1746,B8) -> 0 | E8: DOS | F8: =SUMIFS('CETAK NOTA'!$C$6:$C$21:'CETAK NOTA'!$C$1730:$C$1746,'CETAK NOTA'!$D$6:$D$21:'CETAK NOTA'!$D$1730:$D$1746,G8,'CETAK NOTA'!$B$6:$B$21:'CETAK NOTA'!$B$1730:$B$1746,B8) -> 0 | G8: PCS
D9: =SUMIFS('CETAK NOTA'!$C$6:$C$21:'CETAK NOTA'!$C$1730:$C$1746,'CETAK NOTA'!$D$6:$D$21:'CETAK NOTA'!$D$1730:$D$1746,E9,'CETAK NOTA'!$B$6:$B$21:'CETAK NOTA'!$B$1730:$B$1746,B9) -> 0 | F9: =SUMIFS('CETAK NOTA'!$C$6:$C$21:'CETAK NOTA'!$C$1730:$C$1746,'CETAK NOTA'!$D$6:$D$21:'CETAK NOTA'!$D$1730:$D$1746,G9,'CETAK NOTA'!$B$6:$B$21:'CETAK NOTA'!$B$1730:$B$1746,B9) -> 0
D10: =SUMIFS('CETAK NOTA'!$C$6:$C$21:'CETAK NOTA'!$C$1730:$C$1746,'CETAK NOTA'!$D$6:$D$21:'CETAK NOTA'!$D$1730:$D$1746,E10,'CETAK NOTA'!$B$6:$B$21:'CETAK NOTA'!$B$1730:$B$1746,B10) -> 0 | F10: =SUMIFS('CETAK NOTA'!$C$6:$C$21:'CETAK NOTA'!$C$1730:$C$1746,'CETAK NOTA'!$D$6:$D$21:'CETAK NOTA'!$D$1730:$D$1746,G10,'CETAK NOTA'!$B$6:$B$21:'CETAK NOTA'!$B$1730:$B$1746,B10) -> 0
D11: =SUMIFS('CETAK NOTA'!$C$6:$C$21:'CETAK NOTA'!$C$1730:$C$1746,'CETAK NOTA'!$D$6:$D$21:'CETAK NOTA'!$D$1730:$D$1746,E11,'CETAK NOTA'!$B$6:$B$21:'CETAK NOTA'!$B$1730:$B$1746,B11) -> 0 | F11: =SUMIFS('CETAK NOTA'!$C$6:$C$21:'CETAK NOTA'!$C$1730:$C$1746,'CETAK NOTA'!$D$6:$D$21:'CETAK NOTA'!$D$1730:$D$1746,G11,'CETAK NOTA'!$B$6:$B$21:'CETAK NOTA'!$B$1730:$B$1746,B11) -> 0
D12: =SUMIFS('CETAK NOTA'!$C$6:$C$21:'CETAK NOTA'!$C$1730:$C$1746,'CETAK NOTA'!$D$6:$D$21:'CETAK NOTA'!$D$1730:$D$1746,E12,'CETAK NOTA'!$B$6:$B$21:'CETAK NOTA'!$B$1730:$B$1746,B12) -> 0 | F12: =SUMIFS('CETAK NOTA'!$C$6:$C$21:'CETAK NOTA'!$C$1730:$C$1746,'CETAK NOTA'!$D$6:$D$21:'CETAK NOTA'!$D$1730:$D$1746,G12,'CETAK NOTA'!$B$6:$B$21:'CETAK NOTA'!$B$1730:$B$1746,B12) -> 0
D13: =SUMIFS('CETAK NOTA'!$C$6:$C$21:'CETAK NOTA'!$C$1730:$C$1746,'CETAK NOTA'!$D$6:$D$21:'CETAK NOTA'!$D$1730:$D$1746,E13,'CETAK NOTA'!$B$6:$B$21:'CETAK NOTA'!$B$1730:$B$1746,B13) -> 0 | F13: =SUMIFS('CETAK NOTA'!$C$6:$C$21:'CETAK NOTA'!$C$1730:$C$1746,'CETAK NOTA'!$D$6:$D$21:'CETAK NOTA'!$D$1730:$D$1746,G13,'CETAK NOTA'!$B$6:$B$21:'CETAK NOTA'!$B$1730:$B$1746,B13) -> 0
D14: =SUMIFS('CETAK NOTA'!$C$6:$C$21:'CETAK NOTA'!$C$1730:$C$1746,'CETAK NOTA'!$D$6:$D$21:'CETAK NOTA'!$D$1730:$D$1746,E14,'CETAK NOTA'!$B$6:$B$21:'CETAK NOTA'!$B$1730:$B$1746,B14) -> 0 | F14: =SUMIFS('CETAK NOTA'!$C$6:$C$21:'CETAK NOTA'!$C$1730:$C$1746,'CETAK NOTA'!$D$6:$D$21:'CETAK NOTA'!$D$1730:$D$1746,G14,'CETAK NOTA'!$B$6:$B$21:'CETAK NOTA'!$B$1730:$B$1746,B14) -> 0
D15: =SUMIFS('CETAK NOTA'!$C$6:$C$21:'CETAK NOTA'!$C$1730:$C$1746,'CETAK NOTA'!$D$6:$D$21:'CETAK NOTA'!$D$1730:$D$1746,E15,'CETAK NOTA'!$B$6:$B$21:'CETAK NOTA'!$B$1730:$B$1746,B15) -> 0 | F15: =SUMIFS('CETAK NOTA'!$C$6:$C$21:'CETAK NOTA'!$C$1730:$C$1746,'CETAK NOTA'!$D$6:$D$21:'CETAK NOTA'!$D$1730:$D$1746,G15,'CETAK NOTA'!$B$6:$B$21:'CETAK NOTA'!$B$1730:$B$1746,B15) -> 0
D16: =SUMIFS('CETAK NOTA'!$C$6:$C$21:'CETAK NOTA'!$C$1730:$C$1746,'CETAK NOTA'!$D$6:$D$21:'CETAK NOTA'!$D$1730:$D$1746,E16,'CETAK NOTA'!$B$6:$B$21:'CETAK NOTA'!$B$1730:$B$1746,B16) -> 0 | F16: =SUMIFS('CETAK NOTA'!$C$6:$C$21:'CETAK NOTA'!$C$1730:$C$1746,'CETAK NOTA'!$D$6:$D$21:'CETAK NOTA'!$D$1730:$D$1746,G16,'CETAK NOTA'!$B$6:$B$21:'CETAK NOTA'!$B$1730:$B$1746,B16) -> 0
D17: =SUMIFS('CETAK NOTA'!$C$6:$C$21:'CETAK NOTA'!$C$1730:$C$1746,'CETAK NOTA'!$D$6:$D$21:'CETAK NOTA'!$D$1730:$D$1746,E17,'CETAK NOTA'!$B$6:$B$21:'CETAK NOTA'!$B$1730:$B$1746,B17) -> 0 | F17: =SUMIFS('CETAK NOTA'!$C$6:$C$21:'CETAK NOTA'!$C$1730:$C$1746,'CETAK NOTA'!$D$6:$D$21:'CETAK NOTA'!$D$1730:$D$1746,G17,'CETAK NOTA'!$B$6:$B$21:'CETAK NOTA'!$B$1730:$B$1746,B17) -> 0
D18: =SUMIFS('CETAK NOTA'!$C$6:$C$21:'CETAK NOTA'!$C$1730:$C$1746,'CETAK NOTA'!$D$6:$D$21:'CETAK NOTA'!$D$1730:$D$1746,E18,'CETAK NOTA'!$B$6:$B$21:'CETAK NOTA'!$B$1730:$B$1746,B18) -> 0 | F18: =SUMIFS('CETAK NOTA'!$C$6:$C$21:'CETAK NOTA'!$C$1730:$C$1746,'CETAK NOTA'!$D$6:$D$21:'CETAK NOTA'!$D$1730:$D$1746,G18,'CETAK NOTA'!$B$6:$B$21:'CETAK NOTA'!$B$1730:$B$1746,B18) -> 0
D19: =SUMIFS('CETAK NOTA'!$C$6:$C$21:'CETAK NOTA'!$C$1730:$C$1746,'CETAK NOTA'!$D$6:$D$21:'CETAK NOTA'!$D$1730:$D$1746,E19,'CETAK NOTA'!$B$6:$B$21:'CETAK NOTA'!$B$1730:$B$1746,B19) -> 0 | F19: =SUMIFS('CETAK NOTA'!$C$6:$C$21:'CETAK NOTA'!$C$1730:$C$1746,'CETAK NOTA'!$D$6:$D$21:'CETAK NOTA'!$D$1730:$D$1746,G19,'CETAK NOTA'!$B$6:$B$21:'CETAK NOTA'!$B$1730:$B$1746,B19) -> 0
D20: =SUMIFS('CETAK NOTA'!$C$6:$C$21:'CETAK NOTA'!$C$1730:$C$1746,'CETAK NOTA'!$D$6:$D$21:'CETAK NOTA'!$D$1730:$D$1746,E20,'CETAK NOTA'!$B$6:$B$21:'CETAK NOTA'!$B$1730:$B$1746,B20) -> 0 | F20: =SUMIFS('CETAK NOTA'!$C$6:$C$21:'CETAK NOTA'!$C$1730:$C$1746,'CETAK NOTA'!$D$6:$D$21:'CETAK NOTA'!$D$1730:$D$1746,G20,'CETAK NOTA'!$B$6:$B$21:'CETAK NOTA'!$B$1730:$B$1746,B20) -> 0
D21: =SUMIFS('CETAK NOTA'!$C$6:$C$21:'CETAK NOTA'!$C$1730:$C$1746,'CETAK NOTA'!$D$6:$D$21:'CETAK NOTA'!$D$1730:$D$1746,E21,'CETAK NOTA'!$B$6:$B$21:'CETAK NOTA'!$B$1730:$B$1746,B21) -> 0 | F21: =SUMIFS('CETAK NOTA'!$C$6:$C$21:'CETAK NOTA'!$C$1730:$C$1746,'CETAK NOTA'!$D$6:$D$21:'CETAK NOTA'!$D$1730:$D$1746,G21,'CETAK NOTA'!$B$6:$B$21:'CETAK NOTA'!$B$1730:$B$1746,B21) -> 0
D22: =SUMIFS('CETAK NOTA'!$C$6:$C$21:'CETAK NOTA'!$C$1730:$C$1746,'CETAK NOTA'!$D$6:$D$21:'CETAK NOTA'!$D$1730:$D$1746,E22,'CETAK NOTA'!$B$6:$B$21:'CETAK NOTA'!$B$1730:$B$1746,B22) -> 0 | F22: =SUMIFS('CETAK NOTA'!$C$6:$C$21:'CETAK NOTA'!$C$1730:$C$1746,'CETAK NOTA'!$D$6:$D$21:'CETAK NOTA'!$D$1730:$D$1746,G22,'CETAK NOTA'!$B$6:$B$21:'CETAK NOTA'!$B$1730:$B$1746,B22) -> 0
D23: =SUMIFS('CETAK NOTA'!$C$6:$C$21:'CETAK NOTA'!$C$1730:$C$1746,'CETAK NOTA'!$D$6:$D$21:'CETAK NOTA'!$D$1730:$D$1746,E23,'CETAK NOTA'!$B$6:$B$21:'CETAK NOTA'!$B$1730:$B$1746,B23) -> 0 | F23: =SUMIFS('CETAK NOTA'!$C$6:$C$21:'CETAK NOTA'!$C$1730:$C$1746,'CETAK NOTA'!$D$6:$D$21:'CETAK NOTA'!$D$1730:$D$1746,G23,'CETAK NOTA'!$B$6:$B$21:'CETAK NOTA'!$B$1730:$B$1746,B23) -> 0
D24: =SUMIFS('CETAK NOTA'!$C$6:$C$21:'CETAK NOTA'!$C$1730:$C$1746,'CETAK NOTA'!$D$6:$D$21:'CETAK NOTA'!$D$1730:$D$1746,E24,'CETAK NOTA'!$B$6:$B$21:'CETAK NOTA'!$B$1730:$B$1746,B24) -> 0 | F24: =SUMIFS('CETAK NOTA'!$C$6:$C$21:'CETAK NOTA'!$C$1730:$C$1746,'CETAK NOTA'!$D$6:$D$21:'CETAK NOTA'!$D$1730:$D$1746,G24,'CETAK NOTA'!$B$6:$B$21:'CETAK NOTA'!$B$1730:$B$1746,B24) -> 0
D25: =SUMIFS('CETAK NOTA'!$C$6:$C$21:'CETAK NOTA'!$C$1730:$C$1746,'CETAK NOTA'!$D$6:$D$21:'CETAK NOTA'!$D$1730:$D$1746,E25,'CETAK NOTA'!$B$6:$B$21:'CETAK NOTA'!$B$1730:$B$1746,B25) -> 0 | F25: =SUMIFS('CETAK NOTA'!$C$6:$C$21:'CETAK NOTA'!$C$1730:$C$1746,'CETAK NOTA'!$D$6:$D$21:'CETAK NOTA'!$D$1730:$D$1746,G25,'CETAK NOTA'!$B$6:$B$21:'CETAK NOTA'!$B$1730:$B$1746,B25) -> 0
D26: =SUMIFS('CETAK NOTA'!$C$6:$C$21:'CETAK NOTA'!$C$1730:$C$1746,'CETAK NOTA'!$D$6:$D$21:'CETAK NOTA'!$D$1730:$D$1746,E26,'CETAK NOTA'!$B$6:$B$21:'CETAK NOTA'!$B$1730:$B$1746,B26) -> 0 | F26: =SUMIFS('CETAK NOTA'!$C$6:$C$21:'CETAK NOTA'!$C$1730:$C$1746,'CETAK NOTA'!$D$6:$D$21:'CETAK NOTA'!$D$1730:$D$1746,G26,'CETAK NOTA'!$B$6:$B$21:'CETAK NOTA'!$B$1730:$B$1746,B26) -> 0
D27: =SUMIFS('CETAK NOTA'!$C$6:$C$21:'CETAK NOTA'!$C$1730:$C$1746,'CETAK NOTA'!$D$6:$D$21:'CETAK NOTA'!$D$1730:$D$1746,E27,'CETAK NOTA'!$B$6:$B$21:'CETAK NOTA'!$B$1730:$B$1746,B27) -> 0 | F27: =SUMIFS('CETAK NOTA'!$C$6:$C$21:'CETAK NOTA'!$C$1730:$C$1746,'CETAK NOTA'!$D$6:$D$21:'CETAK NOTA'!$D$1730:$D$1746,G27,'CETAK NOTA'!$B$6:$B$21:'CETAK NOTA'!$B$1730:$B$1746,B27) -> 0
D28: =SUMIFS('CETAK NOTA'!$C$6:$C$21:'CETAK NOTA'!$C$1730:$C$1746,'CETAK NOTA'!$D$6:$D$21:'CETAK NOTA'!$D$1730:$D$1746,E28,'CETAK NOTA'!$B$6:$B$21:'CETAK NOTA'!$B$1730:$B$1746,B28) -> 0 | F28: =SUMIFS('CETAK NOTA'!$C$6:$C$21:'CETAK NOTA'!$C$1730:$C$1746,'CETAK NOTA'!$D$6:$D$21:'CETAK NOTA'!$D$1730:$D$1746,G28,'CETAK NOTA'!$B$6:$B$21:'CETAK NOTA'!$B$1730:$B$1746,B28) -> 0
D29: =SUMIFS('CETAK NOTA'!$C$6:$C$21:'CETAK NOTA'!$C$1730:$C$1746,'CETAK NOTA'!$D$6:$D$21:'CETAK NOTA'!$D$1730:$D$1746,E29,'CETAK NOTA'!$B$6:$B$21:'CETAK NOTA'!$B$1730:$B$1746,B29) -> 0 | F29: =SUMIFS('CETAK NOTA'!$C$6:$C$21:'CETAK NOTA'!$C$1730:$C$1746,'CETAK NOTA'!$D$6:$D$21:'CETAK NOTA'!$D$1730:$D$1746,G29,'CETAK NOTA'!$B$6:$B$21:'CETAK NOTA'!$B$1730:$B$1746,B29) -> 0
D30: =SUMIFS('CETAK NOTA'!$C$6:$C$21:'CETAK NOTA'!$C$1730:$C$1746,'CETAK NOTA'!$D$6:$D$21:'CETAK NOTA'!$D$1730:$D$1746,E30,'CETAK NOTA'!$B$6:$B$21:'CETAK NOTA'!$B$1730:$B$1746,B30) -> 0 | F30: =SUMIFS('CETAK NOTA'!$C$6:$C$21:'CETAK NOTA'!$C$1730:$C$1746,'CETAK NOTA'!$D$6:$D$21:'CETAK NOTA'!$D$1730:$D$1746,G30,'CETAK NOTA'!$B$6:$B$21:'CETAK NOTA'!$B$1730:$B$1746,B30) -> 0
D31: =SUMIFS('CETAK NOTA'!$C$6:$C$21:'CETAK NOTA'!$C$1730:$C$1746,'CETAK NOTA'!$D$6:$D$21:'CETAK NOTA'!$D$1730:$D$1746,E31,'CETAK NOTA'!$B$6:$B$21:'CETAK NOTA'!$B$1730:$B$1746,B31) -> 0 | F31: =SUMIFS('CETAK NOTA'!$C$6:$C$21:'CETAK NOTA'!$C$1730:$C$1746,'CETAK NOTA'!$D$6:$D$21:'CETAK NOTA'!$D$1730:$D$1746,G31,'CETAK NOTA'!$B$6:$B$21:'CETAK NOTA'!$B$1730:$B$1746,B31) -> 0
D32: =SUMIFS('CETAK NOTA'!$C$6:$C$21:'CETAK NOTA'!$C$1730:$C$1746,'CETAK NOTA'!$D$6:$D$21:'CETAK NOTA'!$D$1730:$D$1746,E32,'CETAK NOTA'!$B$6:$B$21:'CETAK NOTA'!$B$1730:$B$1746,B32) -> 0 | F32: =SUMIFS('CETAK NOTA'!$C$6:$C$21:'CETAK NOTA'!$C$1730:$C$1746,'CETAK NOTA'!$D$6:$D$21:'CETAK NOTA'!$D$1730:$D$1746,G32,'CETAK NOTA'!$B$6:$B$21:'CETAK NOTA'!$B$1730:$B$1746,B32) -> 0
D33: =SUMIFS('CETAK NOTA'!$C$6:$C$21:'CETAK NOTA'!$C$1730:$C$1746,'CETAK NOTA'!$D$6:$D$21:'CETAK NOTA'!$D$1730:$D$1746,E33,'CETAK NOTA'!$B$6:$B$21:'CETAK NOTA'!$B$1730:$B$1746,B33) -> 0 | F33: =SUMIFS('CETAK NOTA'!$C$6:$C$21:'CETAK NOTA'!$C$1730:$C$1746,'CETAK NOTA'!$D$6:$D$21:'CETAK NOTA'!$D$1730:$D$1746,G33,'CETAK NOTA'!$B$6:$B$21:'CETAK NOTA'!$B$1730:$B$1746,B33) -> 0
D34: =SUMIFS('CETAK NOTA'!$C$6:$C$21:'CETAK NOTA'!$C$1730:$C$1746,'CETAK NOTA'!$D$6:$D$21:'CETAK NOTA'!$D$1730:$D$1746,E34,'CETAK NOTA'!$B$6:$B$21:'CETAK NOTA'!$B$1730:$B$1746,B34) -> 0 | F34: =SUMIFS('CETAK NOTA'!$C$6:$C$21:'CETAK NOTA'!$C$1730:$C$1746,'CETAK NOTA'!$D$6:$D$21:'CETAK NOTA'!$D$1730:$D$1746,G34,'CETAK NOTA'!$B$6:$B$21:'CETAK NOTA'!$B$1730:$B$1746,B34) -> 0
D35: =SUMIFS('CETAK NOTA'!$C$6:$C$21:'CETAK NOTA'!$C$1730:$C$1746,'CETAK NOTA'!$D$6:$D$21:'CETAK NOTA'!$D$1730:$D$1746,E35,'CETAK NOTA'!$B$6:$B$21:'CETAK NOTA'!$B$1730:$B$1746,B35) -> 0 | F35: =SUMIFS('CETAK NOTA'!$C$6:$C$21:'CETAK NOTA'!$C$1730:$C$1746,'CETAK NOTA'!$D$6:$D$21:'CETAK NOTA'!$D$1730:$D$1746,G35,'CETAK NOTA'!$B$6:$B$21:'CETAK NOTA'!$B$1730:$B$1746,B35) -> 0
D36: =SUMIFS('CETAK NOTA'!$C$6:$C$21:'CETAK NOTA'!$C$1730:$C$1746,'CETAK NOTA'!$D$6:$D$21:'CETAK NOTA'!$D$1730:$D$1746,E36,'CETAK NOTA'!$B$6:$B$21:'CETAK NOTA'!$B$1730:$B$1746,B36) -> 0 | F36: =SUMIFS('CETAK NOTA'!$C$6:$C$21:'CETAK NOTA'!$C$1730:$C$1746,'CETAK NOTA'!$D$6:$D$21:'CETAK NOTA'!$D$1730:$D$1746,G36,'CETAK NOTA'!$B$6:$B$21:'CETAK NOTA'!$B$1730:$B$1746,B36) -> 0
D37: =SUMIFS('CETAK NOTA'!$C$6:$C$21:'CETAK NOTA'!$C$1730:$C$1746,'CETAK NOTA'!$D$6:$D$21:'CETAK NOTA'!$D$1730:$D$1746,E37,'CETAK NOTA'!$B$6:$B$21:'CETAK NOTA'!$B$1730:$B$1746,B37) -> 0 | F37: =SUMIFS('CETAK NOTA'!$C$6:$C$21:'CETAK NOTA'!$C$1730:$C$1746,'CETAK NOTA'!$D$6:$D$21:'CETAK NOTA'!$D$1730:$D$1746,G37,'CETAK NOTA'!$B$6:$B$21:'CETAK NOTA'!$B$1730:$B$1746,B37) -> 0
D38: =SUMIFS('CETAK NOTA'!$C$6:$C$21:'CETAK NOTA'!$C$1730:$C$1746,'CETAK NOTA'!$D$6:$D$21:'CETAK NOTA'!$D$1730:$D$1746,E38,'CETAK NOTA'!$B$6:$B$21:'CETAK NOTA'!$B$1730:$B$1746,B38) -> 0 | F38: =SUMIFS('CETAK NOTA'!$C$6:$C$21:'CETAK NOTA'!$C$1730:$C$1746,'CETAK NOTA'!$D$6:$D$21:'CETAK NOTA'!$D$1730:$D$1746,G38,'CETAK NOTA'!$B$6:$B$21:'CETAK NOTA'!$B$1730:$B$1746,B38) -> 0
D39: =SUMIFS('CETAK NOTA'!$C$6:$C$21:'CETAK NOTA'!$C$1730:$C$1746,'CETAK NOTA'!$D$6:$D$21:'CETAK NOTA'!$D$1730:$D$1746,E39,'CETAK NOTA'!$B$6:$B$21:'CETAK NOTA'!$B$1730:$B$1746,B39) -> 0 | F39: =SUMIFS('CETAK NOTA'!$C$6:$C$21:'CETAK NOTA'!$C$1730:$C$1746,'CETAK NOTA'!$D$6:$D$21:'CETAK NOTA'!$D$1730:$D$1746,G39,'CETAK NOTA'!$B$6:$B$21:'CETAK NOTA'!$B$1730:$B$1746,B39) -> 0
D40: =SUMIFS('CETAK NOTA'!$C$6:$C$21:'CETAK NOTA'!$C$1730:$C$1746,'CETAK NOTA'!$D$6:$D$21:'CETAK NOTA'!$D$1730:$D$1746,E40,'CETAK NOTA'!$B$6:$B$21:'CETAK NOTA'!$B$1730:$B$1746,B40) -> 0 | F40: =SUMIFS('CETAK NOTA'!$C$6:$C$21:'CETAK NOTA'!$C$1730:$C$1746,'CETAK NOTA'!$D$6:$D$21:'CETAK NOTA'!$D$1730:$D$1746,G40,'CETAK NOTA'!$B$6:$B$21:'CETAK NOTA'!$B$1730:$B$1746,B40) -> 0
D41: =SUMIFS('CETAK NOTA'!$C$6:$C$21:'CETAK NOTA'!$C$1730:$C$1746,'CETAK NOTA'!$D$6:$D$21:'CETAK NOTA'!$D$1730:$D$1746,E41,'CETAK NOTA'!$B$6:$B$21:'CETAK NOTA'!$B$1730:$B$1746,B41) -> 0 | F41: =SUMIFS('CETAK NOTA'!$C$6:$C$21:'CETAK NOTA'!$C$1730:$C$1746,'CETAK NOTA'!$D$6:$D$21:'CETAK NOTA'!$D$1730:$D$1746,G41,'CETAK NOTA'!$B$6:$B$21:'CETAK NOTA'!$B$1730:$B$1746,B41) -> 0
D42: =SUMIFS('CETAK NOTA'!$C$6:$C$21:'CETAK NOTA'!$C$1730:$C$1746,'CETAK NOTA'!$D$6:$D$21:'CETAK NOTA'!$D$1730:$D$1746,E42,'CETAK NOTA'!$B$6:$B$21:'CETAK NOTA'!$B$1730:$B$1746,B42) -> 0 | F42: =SUMIFS('CETAK NOTA'!$C$6:$C$21:'CETAK NOTA'!$C$1730:$C$1746,'CETAK NOTA'!$D$6:$D$21:'CETAK NOTA'!$D$1730:$D$1746,G42,'CETAK NOTA'!$B$6:$B$21:'CETAK NOTA'!$B$1730:$B$1746,B42) -> 0
D43: =SUMIFS('CETAK NOTA'!$C$6:$C$21:'CETAK NOTA'!$C$1730:$C$1746,'CETAK NOTA'!$D$6:$D$21:'CETAK NOTA'!$D$1730:$D$1746,E43,'CETAK NOTA'!$B$6:$B$21:'CETAK NOTA'!$B$1730:$B$1746,B43) -> 0 | F43: =SUMIFS('CETAK NOTA'!$C$6:$C$21:'CETAK NOTA'!$C$1730:$C$1746,'CETAK NOTA'!$D$6:$D$21:'CETAK NOTA'!$D$1730:$D$1746,G43,'CETAK NOTA'!$B$6:$B$21:'CETAK NOTA'!$B$1730:$B$1746,B43) -> 0
D44: =SUMIFS('CETAK NOTA'!$C$6:$C$21:'CETAK NOTA'!$C$1730:$C$1746,'CETAK NOTA'!$D$6:$D$21:'CETAK NOTA'!$D$1730:$D$1746,E44,'CETAK NOTA'!$B$6:$B$21:'CETAK NOTA'!$B$1730:$B$1746,B44) -> 0 | F44: =SUMIFS('CETAK NOTA'!$C$6:$C$21:'CETAK NOTA'!$C$1730:$C$1746,'CETAK NOTA'!$D$6:$D$21:'CETAK NOTA'!$D$1730:$D$1746,G44,'CETAK NOTA'!$B$6:$B$21:'CETAK NOTA'!$B$1730:$B$1746,B44) -> 0
D45: =SUMIFS('CETAK NOTA'!$C$6:$C$21:'CETAK NOTA'!$C$1730:$C$1746,'CETAK NOTA'!$D$6:$D$21:'CETAK NOTA'!$D$1730:$D$1746,E45,'CETAK NOTA'!$B$6:$B$21:'CETAK NOTA'!$B$1730:$B$1746,B45) -> 0 | F45: =SUMIFS('CETAK NOTA'!$C$6:$C$21:'CETAK NOTA'!$C$1730:$C$1746,'CETAK NOTA'!$D$6:$D$21:'CETAK NOTA'!$D$1730:$D$1746,G45,'CETAK NOTA'!$B$6:$B$21:'CETAK NOTA'!$B$1730:$B$1746,B45) -> 0
D46: =SUMIFS('CETAK NOTA'!$C$6:$C$21:'CETAK NOTA'!$C$1730:$C$1746,'CETAK NOTA'!$D$6:$D$21:'CETAK NOTA'!$D$1730:$D$1746,E46,'CETAK NOTA'!$B$6:$B$21:'CETAK NOTA'!$B$1730:$B$1746,B46) -> 0 | F46: =SUMIFS('CETAK NOTA'!$C$6:$C$21:'CETAK NOTA'!$C$1730:$C$1746,'CETAK NOTA'!$D$6:$D$21:'CETAK NOTA'!$D$1730:$D$1746,G46,'CETAK NOTA'!$B$6:$B$21:'CETAK NOTA'!$B$1730:$B$1746,B46) -> 0
D47: =SUMIFS('CETAK NOTA'!$C$6:$C$21:'CETAK NOTA'!$C$1730:$C$1746,'CETAK NOTA'!$D$6:$D$21:'CETAK NOTA'!$D$1730:$D$1746,E47,'CETAK NOTA'!$B$6:$B$21:'CETAK NOTA'!$B$1730:$B$1746,B47) -> 0 | F47: =SUMIFS('CETAK NOTA'!$C$6:$C$21:'CETAK NOTA'!$C$1730:$C$1746,'CETAK NOTA'!$D$6:$D$21:'CETAK NOTA'!$D$1730:$D$1746,G47,'CETAK NOTA'!$B$6:$B$21:'CETAK NOTA'!$B$1730:$B$1746,B47) -> 0
D48: =SUMIFS('CETAK NOTA'!$C$6:$C$21:'CETAK NOTA'!$C$1730:$C$1746,'CETAK NOTA'!$D$6:$D$21:'CETAK NOTA'!$D$1730:$D$1746,E48,'CETAK NOTA'!$B$6:$B$21:'CETAK NOTA'!$B$1730:$B$1746,B48) -> 0 | F48: =SUMIFS('CETAK NOTA'!$C$6:$C$21:'CETAK NOTA'!$C$1730:$C$1746,'CETAK NOTA'!$D$6:$D$21:'CETAK NOTA'!$D$1730:$D$1746,G48,'CETAK NOTA'!$B$6:$B$21:'CETAK NOTA'!$B$1730:$B$1746,B48) -> 0
D49: =SUMIFS('CETAK NOTA'!$C$6:$C$21:'CETAK NOTA'!$C$1730:$C$1746,'CETAK NOTA'!$D$6:$D$21:'CETAK NOTA'!$D$1730:$D$1746,E49,'CETAK NOTA'!$B$6:$B$21:'CETAK NOTA'!$B$1730:$B$1746,B49) -> 0 | F49: =SUMIFS('CETAK NOTA'!$C$6:$C$21:'CETAK NOTA'!$C$1730:$C$1746,'CETAK NOTA'!$D$6:$D$21:'CETAK NOTA'!$D$1730:$D$1746,G49,'CETAK NOTA'!$B$6:$B$21:'CETAK NOTA'!$B$1730:$B$1746,B49) -> 0
D50: =SUMIFS('CETAK NOTA'!$C$6:$C$21:'CETAK NOTA'!$C$1730:$C$1746,'CETAK NOTA'!$D$6:$D$21:'CETAK NOTA'!$D$1730:$D$1746,E50,'CETAK NOTA'!$B$6:$B$21:'CETAK NOTA'!$B$1730:$B$1746,B50) -> 0 | F50: =SUMIFS('CETAK NOTA'!$C$6:$C$21:'CETAK NOTA'!$C$1730:$C$1746,'CETAK NOTA'!$D$6:$D$21:'CETAK NOTA'!$D$1730:$D$1746,G50,'CETAK NOTA'!$B$6:$B$21:'CETAK NOTA'!$B$1730:$B$1746,B50) -> 0
D51: =SUMIFS('CETAK NOTA'!$C$6:$C$21:'CETAK NOTA'!$C$1730:$C$1746,'CETAK NOTA'!$D$6:$D$21:'CETAK NOTA'!$D$1730:$D$1746,E51,'CETAK NOTA'!$B$6:$B$21:'CETAK NOTA'!$B$1730:$B$1746,B51) -> 0 | F51: =SUMIFS('CETAK NOTA'!$C$6:$C$21:'CETAK NOTA'!$C$1730:$C$1746,'CETAK NOTA'!$D$6:$D$21:'CETAK NOTA'!$D$1730:$D$1746,G51,'CETAK NOTA'!$B$6:$B$21:'CETAK NOTA'!$B$1730:$B$1746,B51) -> 0
D52: =SUMIFS('CETAK NOTA'!$C$6:$C$21:'CETAK NOTA'!$C$1730:$C$1746,'CETAK NOTA'!$D$6:$D$21:'CETAK NOTA'!$D$1730:$D$1746,E52,'CETAK NOTA'!$B$6:$B$21:'CETAK NOTA'!$B$1730:$B$1746,B52) -> 0 | F52: =SUMIFS('CETAK NOTA'!$C$6:$C$21:'CETAK NOTA'!$C$1730:$C$1746,'CETAK NOTA'!$D$6:$D$21:'CETAK NOTA'!$D$1730:$D$1746,G52,'CETAK NOTA'!$B$6:$B$21:'CETAK NOTA'!$B$1730:$B$1746,B52) -> 0
D53: =SUMIFS('CETAK NOTA'!$C$6:$C$21:'CETAK NOTA'!$C$1730:$C$1746,'CETAK NOTA'!$D$6:$D$21:'CETAK NOTA'!$D$1730:$D$1746,E53,'CETAK NOTA'!$B$6:$B$21:'CETAK NOTA'!$B$1730:$B$1746,B53) -> 0 | F53: =SUMIFS('CETAK NOTA'!$C$6:$C$21:'CETAK NOTA'!$C$1730:$C$1746,'CETAK NOTA'!$D$6:$D$21:'CETAK NOTA'!$D$1730:$D$1746,G53,'CETAK NOTA'!$B$6:$B$21:'CETAK NOTA'!$B$1730:$B$1746,B53) -> 0
D54: =SUMIFS('CETAK NOTA'!$C$6:$C$21:'CETAK NOTA'!$C$1730:$C$1746,'CETAK NOTA'!$D$6:$D$21:'CETAK NOTA'!$D$1730:$D$1746,E54,'CETAK NOTA'!$B$6:$B$21:'CETAK NOTA'!$B$1730:$B$1746,B54) -> 0 | F54: =SUMIFS('CETAK NOTA'!$C$6:$C$21:'CETAK NOTA'!$C$1730:$C$1746,'CETAK NOTA'!$D$6:$D$21:'CETAK NOTA'!$D$1730:$D$1746,G54,'CETAK NOTA'!$B$6:$B$21:'CETAK NOTA'!$B$1730:$B$1746,B54) -> 0
D55: =SUMIFS('CETAK NOTA'!$C$6:$C$21:'CETAK NOTA'!$C$1730:$C$1746,'CETAK NOTA'!$D$6:$D$21:'CETAK NOTA'!$D$1730:$D$1746,E55,'CETAK NOTA'!$B$6:$B$21:'CETAK NOTA'!$B$1730:$B$1746,B55) -> 0 | F55: =SUMIFS('CETAK NOTA'!$C$6:$C$21:'CETAK NOTA'!$C$1730:$C$1746,'CETAK NOTA'!$D$6:$D$21:'CETAK NOTA'!$D$1730:$D$1746,G55,'CETAK NOTA'!$B$6:$B$21:'CETAK NOTA'!$B$1730:$B$1746,B55) -> 0
D56: =SUMIFS('CETAK NOTA'!$C$6:$C$21:'CETAK NOTA'!$C$1730:$C$1746,'CETAK NOTA'!$D$6:$D$21:'CETAK NOTA'!$D$1730:$D$1746,E56,'CETAK NOTA'!$B$6:$B$21:'CETAK NOTA'!$B$1730:$B$1746,B56) -> 0 | F56: =SUMIFS('CETAK NOTA'!$C$6:$C$21:'CETAK NOTA'!$C$1730:$C$1746,'CETAK NOTA'!$D$6:$D$21:'CETAK NOTA'!$D$1730:$D$1746,G56,'CETAK NOTA'!$B$6:$B$21:'CETAK NOTA'!$B$1730:$B$1746,B56) -> 0
D57: =SUMIFS('CETAK NOTA'!$C$6:$C$21:'CETAK NOTA'!$C$1730:$C$1746,'CETAK NOTA'!$D$6:$D$21:'CETAK NOTA'!$D$1730:$D$1746,E57,'CETAK NOTA'!$B$6:$B$21:'CETAK NOTA'!$B$1730:$B$1746,B57) -> 0 | F57: =SUMIFS('CETAK NOTA'!$C$6:$C$21:'CETAK NOTA'!$C$1730:$C$1746,'CETAK NOTA'!$D$6:$D$21:'CETAK NOTA'!$D$1730:$D$1746,G57,'CETAK NOTA'!$B$6:$B$21:'CETAK NOTA'!$B$1730:$B$1746,B57) -> 0
D58: =SUMIFS('CETAK NOTA'!$C$6:$C$21:'CETAK NOTA'!$C$1730:$C$1746,'CETAK NOTA'!$D$6:$D$21:'CETAK NOTA'!$D$1730:$D$1746,E58,'CETAK NOTA'!$B$6:$B$21:'CETAK NOTA'!$B$1730:$B$1746,B58) -> 0 | F58: =SUMIFS('CETAK NOTA'!$C$6:$C$21:'CETAK NOTA'!$C$1730:$C$1746,'CETAK NOTA'!$D$6:$D$21:'CETAK NOTA'!$D$1730:$D$1746,G58,'CETAK NOTA'!$B$6:$B$21:'CETAK NOTA'!$B$1730:$B$1746,B58) -> 0
D59: =SUMIFS('CETAK NOTA'!$C$6:$C$21:'CETAK NOTA'!$C$1730:$C$1746,'CETAK NOTA'!$D$6:$D$21:'CETAK NOTA'!$D$1730:$D$1746,E59,'CETAK NOTA'!$B$6:$B$21:'CETAK NOTA'!$B$1730:$B$1746,B59) -> 0 | F59: =SUMIFS('CETAK NOTA'!$C$6:$C$21:'CETAK NOTA'!$C$1730:$C$1746,'CETAK NOTA'!$D$6:$D$21:'CETAK NOTA'!$D$1730:$D$1746,G59,'CETAK NOTA'!$B$6:$B$21:'CETAK NOTA'!$B$1730:$B$1746,B59) -> 0
D60: =SUMIFS('CETAK NOTA'!$C$6:$C$21:'CETAK NOTA'!$C$1730:$C$1746,'CETAK NOTA'!$D$6:$D$21:'CETAK NOTA'!$D$1730:$D$1746,E60,'CETAK NOTA'!$B$6:$B$21:'CETAK NOTA'!$B$1730:$B$1746,B60) -> 0 | F60: =SUMIFS('CETAK NOTA'!$C$6:$C$21:'CETAK NOTA'!$C$1730:$C$1746,'CETAK NOTA'!$D$6:$D$21:'CETAK NOTA'!$D$1730:$D$1746,G60,'CETAK NOTA'!$B$6:$B$21:'CETAK NOTA'!$B$1730:$B$1746,B60) -> 0
D61: =SUMIFS('CETAK NOTA'!$C$6:$C$21:'CETAK NOTA'!$C$1730:$C$1746,'CETAK NOTA'!$D$6:$D$21:'CETAK NOTA'!$D$1730:$D$1746,E61,'CETAK NOTA'!$B$6:$B$21:'CETAK NOTA'!$B$1730:$B$1746,B61) -> 0 | F61: =SUMIFS('CETAK NOTA'!$C$6:$C$21:'CETAK NOTA'!$C$1730:$C$1746,'CETAK NOTA'!$D$6:$D$21:'CETAK NOTA'!$D$1730:$D$1746,G61,'CETAK NOTA'!$B$6:$B$21:'CETAK NOTA'!$B$1730:$B$1746,B61) -> 0
D62: =SUMIFS('CETAK NOTA'!$C$6:$C$21:'CETAK NOTA'!$C$1730:$C$1746,'CETAK NOTA'!$D$6:$D$21:'CETAK NOTA'!$D$1730:$D$1746,E62,'CETAK NOTA'!$B$6:$B$21:'CETAK NOTA'!$B$1730:$B$1746,B62) -> 0 | F62: =SUMIFS('CETAK NOTA'!$C$6:$C$21:'CETAK NOTA'!$C$1730:$C$1746,'CETAK NOTA'!$D$6:$D$21:'CETAK NOTA'!$D$1730:$D$1746,G62,'CETAK NOTA'!$B$6:$B$21:'CETAK NOTA'!$B$1730:$B$1746,B62) -> 0
D63: =SUMIFS('CETAK NOTA'!$C$6:$C$21:'CETAK NOTA'!$C$1730:$C$1746,'CETAK NOTA'!$D$6:$D$21:'CETAK NOTA'!$D$1730:$D$1746,E63,'CETAK NOTA'!$B$6:$B$21:'CETAK NOTA'!$B$1730:$B$1746,B63) -> 0 | F63: =SUMIFS('CETAK NOTA'!$C$6:$C$21:'CETAK NOTA'!$C$1730:$C$1746,'CETAK NOTA'!$D$6:$D$21:'CETAK NOTA'!$D$1730:$D$1746,G63,'CETAK NOTA'!$B$6:$B$21:'CETAK NOTA'!$B$1730:$B$1746,B63) -> 0
D64: =SUMIFS('CETAK NOTA'!$C$6:$C$21:'CETAK NOTA'!$C$1730:$C$1746,'CETAK NOTA'!$D$6:$D$21:'CETAK NOTA'!$D$1730:$D$1746,E64,'CETAK NOTA'!$B$6:$B$21:'CETAK NOTA'!$B$1730:$B$1746,B64) -> 0 | F64: =SUMIFS('CETAK NOTA'!$C$6:$C$21:'CETAK NOTA'!$C$1730:$C$1746,'CETAK NOTA'!$D$6:$D$21:'CETAK NOTA'!$D$1730:$D$1746,G64,'CETAK NOTA'!$B$6:$B$21:'CETAK NOTA'!$B$1730:$B$1746,B64) -> 0
D65: =SUMIFS('CETAK NOTA'!$C$6:$C$21:'CETAK NOTA'!$C$1730:$C$1746,'CETAK NOTA'!$D$6:$D$21:'CETAK NOTA'!$D$1730:$D$1746,E65,'CETAK NOTA'!$B$6:$B$21:'CETAK NOTA'!$B$1730:$B$1746,B65) -> 0 | F65: =SUMIFS('CETAK NOTA'!$C$6:$C$21:'CETAK NOTA'!$C$1730:$C$1746,'CETAK NOTA'!$D$6:$D$21:'CETAK NOTA'!$D$1730:$D$1746,G65,'CETAK NOTA'!$B$6:$B$21:'CETAK NOTA'!$B$1730:$B$1746,B65) -> 0
C66: =IF(AND(K66=0,L66=0),"",IF(AND(D66>0,K66>L66),"RM","TK")) ->  | D66: =SUMIFS('CETAK NOTA'!$C$6:$C$21:'CETAK NOTA'!$C$1730:$C$1746,'CETAK NOTA'!$D$6:$D$21:'CETAK NOTA'!$D$1730:$D$1746,E66,'CETAK NOTA'!$B$6:$B$21:'CETAK NOTA'!$B$1730:$B$1746,B66) -> 0 | F66: =SUMIFS('CETAK NOTA'!$C$6:$C$21:'CETAK NOTA'!$C$1730:$C$1746,'CETAK NOTA'!$D$6:$D$21:'CETAK NOTA'!$D$1730:$D$1746,G66,'CETAK NOTA'!$B$6:$B$21:'CETAK NOTA'!$B$1730:$B$1746,B66) -> 0
D67: =SUMIFS('CETAK NOTA'!$C$6:$C$21:'CETAK NOTA'!$C$1730:$C$1746,'CETAK NOTA'!$D$6:$D$21:'CETAK NOTA'!$D$1730:$D$1746,E67,'CETAK NOTA'!$B$6:$B$21:'CETAK NOTA'!$B$1730:$B$1746,B67) -> 0 | F67: =SUMIFS('CETAK NOTA'!$C$6:$C$21:'CETAK NOTA'!$C$1730:$C$1746,'CETAK NOTA'!$D$6:$D$21:'CETAK NOTA'!$D$1730:$D$1746,G67,'CETAK NOTA'!$B$6:$B$21:'CETAK NOTA'!$B$1730:$B$1746,B67) -> 0
D68: =SUMIFS('CETAK NOTA'!$C$6:$C$21:'CETAK NOTA'!$C$1730:$C$1746,'CETAK NOTA'!$D$6:$D$21:'CETAK NOTA'!$D$1730:$D$1746,E68,'CETAK NOTA'!$B$6:$B$21:'CETAK NOTA'!$B$1730:$B$1746,B68) -> 0 | F68: =SUMIFS('CETAK NOTA'!$C$6:$C$21:'CETAK NOTA'!$C$1730:$C$1746,'CETAK NOTA'!$D$6:$D$21:'CETAK NOTA'!$D$1730:$D$1746,G68,'CETAK NOTA'!$B$6:$B$21:'CETAK NOTA'!$B$1730:$B$1746,B68) -> 0
D69: =SUMIFS('CETAK NOTA'!$C$6:$C$21:'CETAK NOTA'!$C$1730:$C$1746,'CETAK NOTA'!$D$6:$D$21:'CETAK NOTA'!$D$1730:$D$1746,E69,'CETAK NOTA'!$B$6:$B$21:'CETAK NOTA'!$B$1730:$B$1746,B69) -> 0 | F69: =SUMIFS('CETAK NOTA'!$C$6:$C$21:'CETAK NOTA'!$C$1730:$C$1746,'CETAK NOTA'!$D$6:$D$21:'CETAK NOTA'!$D$1730:$D$1746,G69,'CETAK NOTA'!$B$6:$B$21:'CETAK NOTA'!$B$1730:$B$1746,B69) -> 0
D70: =SUMIFS('CETAK NOTA'!$C$6:$C$21:'CETAK NOTA'!$C$1730:$C$1746,'CETAK NOTA'!$D$6:$D$21:'CETAK NOTA'!$D$1730:$D$1746,E70,'CETAK NOTA'!$B$6:$B$21:'CETAK NOTA'!$B$1730:$B$1746,B70) -> 0 | F70: =SUMIFS('CETAK NOTA'!$C$6:$C$21:'CETAK NOTA'!$C$1730:$C$1746,'CETAK NOTA'!$D$6:$D$21:'CETAK NOTA'!$D$1730:$D$1746,G70,'CETAK NOTA'!$B$6:$B$21:'CETAK NOTA'!$B$1730:$B$1746,B70) -> 0
D71: =SUMIFS('CETAK NOTA'!$C$6:$C$21:'CETAK NOTA'!$C$1730:$C$1746,'CETAK NOTA'!$D$6:$D$21:'CETAK NOTA'!$D$1730:$D$1746,E71,'CETAK NOTA'!$B$6:$B$21:'CETAK NOTA'!$B$1730:$B$1746,B71) -> 0 | F71: =SUMIFS('CETAK NOTA'!$C$6:$C$21:'CETAK NOTA'!$C$1730:$C$1746,'CETAK NOTA'!$D$6:$D$21:'CETAK NOTA'!$D$1730:$D$1746,G71,'CETAK NOTA'!$B$6:$B$21:'CETAK NOTA'!$B$1730:$B$1746,B71) -> 0
D72: =SUMIFS('CETAK NOTA'!$C$6:$C$21:'CETAK NOTA'!$C$1730:$C$1746,'CETAK NOTA'!$D$6:$D$21:'CETAK NOTA'!$D$1730:$D$1746,E72,'CETAK NOTA'!$B$6:$B$21:'CETAK NOTA'!$B$1730:$B$1746,B72) -> 0 | F72: =SUMIFS('CETAK NOTA'!$C$6:$C$21:'CETAK NOTA'!$C$1730:$C$1746,'CETAK NOTA'!$D$6:$D$21:'CETAK NOTA'!$D$1730:$D$1746,G72,'CETAK NOTA'!$B$6:$B$21:'CETAK NOTA'!$B$1730:$B$1746,B72) -> 0
D73: =SUMIFS('CETAK NOTA'!$C$6:$C$21:'CETAK NOTA'!$C$1730:$C$1746,'CETAK NOTA'!$D$6:$D$21:'CETAK NOTA'!$D$1730:$D$1746,E73,'CETAK NOTA'!$B$6:$B$21:'CETAK NOTA'!$B$1730:$B$1746,B73) -> 0 | F73: =SUMIFS('CETAK NOTA'!$C$6:$C$21:'CETAK NOTA'!$C$1730:$C$1746,'CETAK NOTA'!$D$6:$D$21:'CETAK NOTA'!$D$1730:$D$1746,G73,'CETAK NOTA'!$B$6:$B$21:'CETAK NOTA'!$B$1730:$B$1746,B73) -> 0
D74: =SUMIFS('CETAK NOTA'!$C$6:$C$21:'CETAK NOTA'!$C$1730:$C$1746,'CETAK NOTA'!$D$6:$D$21:'CETAK NOTA'!$D$1730:$D$1746,E74,'CETAK NOTA'!$B$6:$B$21:'CETAK NOTA'!$B$1730:$B$1746,B74) -> 0 | F74: =SUMIFS('CETAK NOTA'!$C$6:$C$21:'CETAK NOTA'!$C$1730:$C$1746,'CETAK NOTA'!$D$6:$D$21:'CETAK NOTA'!$D$1730:$D$1746,G74,'CETAK NOTA'!$B$6:$B$21:'CETAK NOTA'!$B$1730:$B$1746,B74) -> 0
D75: =SUMIFS('CETAK NOTA'!$C$6:$C$21:'CETAK NOTA'!$C$1730:$C$1746,'CETAK NOTA'!$D$6:$D$21:'CETAK NOTA'!$D$1730:$D$1746,E75,'CETAK NOTA'!$B$6:$B$21:'CETAK NOTA'!$B$1730:$B$1746,B75) -> 0 | F75: =SUMIFS('CETAK NOTA'!$C$6:$C$21:'CETAK NOTA'!$C$1730:$C$1746,'CETAK NOTA'!$D$6:$D$21:'CETAK NOTA'!$D$1730:$D$1746,G75,'CETAK NOTA'!$B$6:$B$21:'CETAK NOTA'!$B$1730:$B$1746,B75) -> 0
D76: =SUMIFS('CETAK NOTA'!$C$6:$C$21:'CETAK NOTA'!$C$1730:$C$1746,'CETAK NOTA'!$D$6:$D$21:'CETAK NOTA'!$D$1730:$D$1746,E76,'CETAK NOTA'!$B$6:$B$21:'CETAK NOTA'!$B$1730:$B$1746,B76) -> 0 | F76: =SUMIFS('CETAK NOTA'!$C$6:$C$21:'CETAK NOTA'!$C$1730:$C$1746,'CETAK NOTA'!$D$6:$D$21:'CETAK NOTA'!$D$1730:$D$1746,G76,'CETAK NOTA'!$B$6:$B$21:'CETAK NOTA'!$B$1730:$B$1746,B76) -> 0
D77: =SUMIFS('CETAK NOTA'!$C$6:$C$21:'CETAK NOTA'!$C$1730:$C$1746,'CETAK NOTA'!$D$6:$D$21:'CETAK NOTA'!$D$1730:$D$1746,E77,'CETAK NOTA'!$B$6:$B$21:'CETAK NOTA'!$B$1730:$B$1746,B77) -> 0 | F77: =SUMIFS('CETAK NOTA'!$C$6:$C$21:'CETAK NOTA'!$C$1730:$C$1746,'CETAK NOTA'!$D$6:$D$21:'CETAK NOTA'!$D$1730:$D$1746,G77,'CETAK NOTA'!$B$6:$B$21:'CETAK NOTA'!$B$1730:$B$1746,B77) -> 0
D78: =SUMIFS('CETAK NOTA'!$C$6:$C$21:'CETAK NOTA'!$C$1730:$C$1746,'CETAK NOTA'!$D$6:$D$21:'CETAK NOTA'!$D$1730:$D$1746,E78,'CETAK NOTA'!$B$6:$B$21:'CETAK NOTA'!$B$1730:$B$1746,B78) -> 0 | F78: =SUMIFS('CETAK NOTA'!$C$6:$C$21:'CETAK NOTA'!$C$1730:$C$1746,'CETAK NOTA'!$D$6:$D$21:'CETAK NOTA'!$D$1730:$D$1746,G78,'CETAK NOTA'!$B$6:$B$21:'CETAK NOTA'!$B$1730:$B$1746,B78) -> 0
D79: =SUMIFS('CETAK NOTA'!$C$6:$C$21:'CETAK NOTA'!$C$1730:$C$1746,'CETAK NOTA'!$D$6:$D$21:'CETAK NOTA'!$D$1730:$D$1746,E79,'CETAK NOTA'!$B$6:$B$21:'CETAK NOTA'!$B$1730:$B$1746,B79) -> 0 | F79: =SUMIFS('CETAK NOTA'!$C$6:$C$21:'CETAK NOTA'!$C$1730:$C$1746,'CETAK NOTA'!$D$6:$D$21:'CETAK NOTA'!$D$1730:$D$1746,G79,'CETAK NOTA'!$B$6:$B$21:'CETAK NOTA'!$B$1730:$B$1746,B79) -> 0
D80: =SUMIFS('CETAK NOTA'!$C$6:$C$21:'CETAK NOTA'!$C$1730:$C$1746,'CETAK NOTA'!$D$6:$D$21:'CETAK NOTA'!$D$1730:$D$1746,E80,'CETAK NOTA'!$B$6:$B$21:'CETAK NOTA'!$B$1730:$B$1746,B80) -> 0 | F80: =SUMIFS('CETAK NOTA'!$C$6:$C$21:'CETAK NOTA'!$C$1730:$C$1746,'CETAK NOTA'!$D$6:$D$21:'CETAK NOTA'!$D$1730:$D$1746,G80,'CETAK NOTA'!$B$6:$B$21:'CETAK NOTA'!$B$1730:$B$1746,B80) -> 0
D81: =SUMIFS('CETAK NOTA'!$C$6:$C$21:'CETAK NOTA'!$C$1730:$C$1746,'CETAK NOTA'!$D$6:$D$21:'CETAK NOTA'!$D$1730:$D$1746,E81,'CETAK NOTA'!$B$6:$B$21:'CETAK NOTA'!$B$1730:$B$1746,B81) -> 0 | F81: =SUMIFS('CETAK NOTA'!$C$6:$C$21:'CETAK NOTA'!$C$1730:$C$1746,'CETAK NOTA'!$D$6:$D$21:'CETAK NOTA'!$D$1730:$D$1746,G81,'CETAK NOTA'!$B$6:$B$21:'CETAK NOTA'!$B$1730:$B$1746,B81) -> 0
D82: =SUMIFS('CETAK NOTA'!$C$6:$C$21:'CETAK NOTA'!$C$1730:$C$1746,'CETAK NOTA'!$D$6:$D$21:'CETAK NOTA'!$D$1730:$D$1746,E82,'CETAK NOTA'!$B$6:$B$21:'CETAK NOTA'!$B$1730:$B$1746,B82) -> 0 | F82: =SUMIFS('CETAK NOTA'!$C$6:$C$21:'CETAK NOTA'!$C$1730:$C$1746,'CETAK NOTA'!$D$6:$D$21:'CETAK NOTA'!$D$1730:$D$1746,G82,'CETAK NOTA'!$B$6:$B$21:'CETAK NOTA'!$B$1730:$B$1746,B82) -> 0
D83: =SUMIFS('CETAK NOTA'!$C$6:$C$21:'CETAK NOTA'!$C$1730:$C$1746,'CETAK NOTA'!$D$6:$D$21:'CETAK NOTA'!$D$1730:$D$1746,E83,'CETAK NOTA'!$B$6:$B$21:'CETAK NOTA'!$B$1730:$B$1746,B83) -> 0 | F83: =SUMIFS('CETAK NOTA'!$C$6:$C$21:'CETAK NOTA'!$C$1730:$C$1746,'CETAK NOTA'!$D$6:$D$21:'CETAK NOTA'!$D$1730:$D$1746,G83,'CETAK NOTA'!$B$6:$B$21:'CETAK NOTA'!$B$1730:$B$1746,B83) -> 0
D84: =SUMIFS('CETAK NOTA'!$C$6:$C$21:'CETAK NOTA'!$C$1730:$C$1746,'CETAK NOTA'!$D$6:$D$21:'CETAK NOTA'!$D$1730:$D$1746,E84,'CETAK NOTA'!$B$6:$B$21:'CETAK NOTA'!$B$1730:$B$1746,B84) -> 0 | F84: =SUMIFS('CETAK NOTA'!$C$6:$C$21:'CETAK NOTA'!$C$1730:$C$1746,'CETAK NOTA'!$D$6:$D$21:'CETAK NOTA'!$D$1730:$D$1746,G84,'CETAK NOTA'!$B$6:$B$21:'CETAK NOTA'!$B$1730:$B$1746,B84) -> 0
D85: =SUMIFS('CETAK NOTA'!$C$6:$C$21:'CETAK NOTA'!$C$1730:$C$1746,'CETAK NOTA'!$D$6:$D$21:'CETAK NOTA'!$D$1730:$D$1746,E85,'CETAK NOTA'!$B$6:$B$21:'CETAK NOTA'!$B$1730:$B$1746,B85) -> 0 | F85: =SUMIFS('CETAK NOTA'!$C$6:$C$21:'CETAK NOTA'!$C$1730:$C$1746,'CETAK NOTA'!$D$6:$D$21:'CETAK NOTA'!$D$1730:$D$1746,G85,'CETAK NOTA'!$B$6:$B$21:'CETAK NOTA'!$B$1730:$B$1746,B85) -> 0
D86: =SUMIFS('CETAK NOTA'!$C$6:$C$21:'CETAK NOTA'!$C$1730:$C$1746,'CETAK NOTA'!$D$6:$D$21:'CETAK NOTA'!$D$1730:$D$1746,E86,'CETAK NOTA'!$B$6:$B$21:'CETAK NOTA'!$B$1730:$B$1746,B86) -> 0 | F86: =SUMIFS('CETAK NOTA'!$C$6:$C$21:'CETAK NOTA'!$C$1730:$C$1746,'CETAK NOTA'!$D$6:$D$21:'CETAK NOTA'!$D$1730:$D$1746,G86,'CETAK NOTA'!$B$6:$B$21:'CETAK NOTA'!$B$1730:$B$1746,B86) -> 0
D87: =SUMIFS('CETAK NOTA'!$C$6:$C$21:'CETAK NOTA'!$C$1730:$C$1746,'CETAK NOTA'!$D$6:$D$21:'CETAK NOTA'!$D$1730:$D$1746,E87,'CETAK NOTA'!$B$6:$B$21:'CETAK NOTA'!$B$1730:$B$1746,B87) -> 0 | F87: =SUMIFS('CETAK NOTA'!$C$6:$C$21:'CETAK NOTA'!$C$1730:$C$1746,'CETAK NOTA'!$D$6:$D$21:'CETAK NOTA'!$D$1730:$D$1746,G87,'CETAK NOTA'!$B$6:$B$21:'CETAK NOTA'!$B$1730:$B$1746,B87) -> 0
D88: =SUMIFS('CETAK NOTA'!$C$6:$C$21:'CETAK NOTA'!$C$1730:$C$1746,'CETAK NOTA'!$D$6:$D$21:'CETAK NOTA'!$D$1730:$D$1746,E88,'CETAK NOTA'!$B$6:$B$21:'CETAK NOTA'!$B$1730:$B$1746,B88) -> 0 | F88: =SUMIFS('CETAK NOTA'!$C$6:$C$21:'CETAK NOTA'!$C$1730:$C$1746,'CETAK NOTA'!$D$6:$D$21:'CETAK NOTA'!$D$1730:$D$1746,G88,'CETAK NOTA'!$B$6:$B$21:'CETAK NOTA'!$B$1730:$B$1746,B88) -> 0
D89: =SUMIFS('CETAK NOTA'!$C$6:$C$21:'CETAK NOTA'!$C$1730:$C$1746,'CETAK NOTA'!$D$6:$D$21:'CETAK NOTA'!$D$1730:$D$1746,E89,'CETAK NOTA'!$B$6:$B$21:'CETAK NOTA'!$B$1730:$B$1746,B89) -> 0 | F89: =SUMIFS('CETAK NOTA'!$C$6:$C$21:'CETAK NOTA'!$C$1730:$C$1746,'CETAK NOTA'!$D$6:$D$21:'CETAK NOTA'!$D$1730:$D$1746,G89,'CETAK NOTA'!$B$6:$B$21:'CETAK NOTA'!$B$1730:$B$1746,B89) -> 0
D90: =SUMIFS('CETAK NOTA'!$C$6:$C$21:'CETAK NOTA'!$C$1730:$C$1746,'CETAK NOTA'!$D$6:$D$21:'CETAK NOTA'!$D$1730:$D$1746,E90,'CETAK NOTA'!$B$6:$B$21:'CETAK NOTA'!$B$1730:$B$1746,B90) -> 0 | F90: =SUMIFS('CETAK NOTA'!$C$6:$C$21:'CETAK NOTA'!$C$1730:$C$1746,'CETAK NOTA'!$D$6:$D$21:'CETAK NOTA'!$D$1730:$D$1746,G90,'CETAK NOTA'!$B$6:$B$21:'CETAK NOTA'!$B$1730:$B$1746,B90) -> 0
D91: =SUMIFS('CETAK NOTA'!$C$6:$C$21:'CETAK NOTA'!$C$1730:$C$1746,'CETAK NOTA'!$D$6:$D$21:'CETAK NOTA'!$D$1730:$D$1746,E91,'CETAK NOTA'!$B$6:$B$21:'CETAK NOTA'!$B$1730:$B$1746,B91) -> 0 | F91: =SUMIFS('CETAK NOTA'!$C$6:$C$21:'CETAK NOTA'!$C$1730:$C$1746,'CETAK NOTA'!$D$6:$D$21:'CETAK NOTA'!$D$1730:$D$1746,G91,'CETAK NOTA'!$B$6:$B$21:'CETAK NOTA'!$B$1730:$B$1746,B91) -> 0
D92: =SUMIFS('CETAK NOTA'!$C$6:$C$21:'CETAK NOTA'!$C$1730:$C$1746,'CETAK NOTA'!$D$6:$D$21:'CETAK NOTA'!$D$1730:$D$1746,E92,'CETAK NOTA'!$B$6:$B$21:'CETAK NOTA'!$B$1730:$B$1746,B92) -> 0 | F92: =SUMIFS('CETAK NOTA'!$C$6:$C$21:'CETAK NOTA'!$C$1730:$C$1746,'CETAK NOTA'!$D$6:$D$21:'CETAK NOTA'!$D$1730:$D$1746,G92,'CETAK NOTA'!$B$6:$B$21:'CETAK NOTA'!$B$1730:$B$1746,B92) -> 0
D93: =SUMIFS('CETAK NOTA'!$C$6:$C$21:'CETAK NOTA'!$C$1730:$C$1746,'CETAK NOTA'!$D$6:$D$21:'CETAK NOTA'!$D$1730:$D$1746,E93,'CETAK NOTA'!$B$6:$B$21:'CETAK NOTA'!$B$1730:$B$1746,B93) -> 0 | F93: =SUMIFS('CETAK NOTA'!$C$6:$C$21:'CETAK NOTA'!$C$1730:$C$1746,'CETAK NOTA'!$D$6:$D$21:'CETAK NOTA'!$D$1730:$D$1746,G93,'CETAK NOTA'!$B$6:$B$21:'CETAK NOTA'!$B$1730:$B$1746,B93) -> 0
D94: =SUMIFS('CETAK NOTA'!$C$6:$C$21:'CETAK NOTA'!$C$1730:$C$1746,'CETAK NOTA'!$D$6:$D$21:'CETAK NOTA'!$D$1730:$D$1746,E94,'CETAK NOTA'!$B$6:$B$21:'CETAK NOTA'!$B$1730:$B$1746,B94) -> 0 | F94: =SUMIFS('CETAK NOTA'!$C$6:$C$21:'CETAK NOTA'!$C$1730:$C$1746,'CETAK NOTA'!$D$6:$D$21:'CETAK NOTA'!$D$1730:$D$1746,G94,'CETAK NOTA'!$B$6:$B$21:'CETAK NOTA'!$B$1730:$B$1746,B94) -> 0
D95: =SUMIFS('CETAK NOTA'!$C$6:$C$21:'CETAK NOTA'!$C$1730:$C$1746,'CETAK NOTA'!$D$6:$D$21:'CETAK NOTA'!$D$1730:$D$1746,E95,'CETAK NOTA'!$B$6:$B$21:'CETAK NOTA'!$B$1730:$B$1746,B95) -> 0 | F95: =SUMIFS('CETAK NOTA'!$C$6:$C$21:'CETAK NOTA'!$C$1730:$C$1746,'CETAK NOTA'!$D$6:$D$21:'CETAK NOTA'!$D$1730:$D$1746,G95,'CETAK NOTA'!$B$6:$B$21:'CETAK NOTA'!$B$1730:$B$1746,B95) -> 0
D96: =SUMIFS('CETAK NOTA'!$C$6:$C$21:'CETAK NOTA'!$C$1730:$C$1746,'CETAK NOTA'!$D$6:$D$21:'CETAK NOTA'!$D$1730:$D$1746,E96,'CETAK NOTA'!$B$6:$B$21:'CETAK NOTA'!$B$1730:$B$1746,B96) -> 0 | F96: =SUMIFS('CETAK NOTA'!$C$6:$C$21:'CETAK NOTA'!$C$1730:$C$1746,'CETAK NOTA'!$D$6:$D$21:'CETAK NOTA'!$D$1730:$D$1746,G96,'CETAK NOTA'!$B$6:$B$21:'CETAK NOTA'!$B$1730:$B$1746,B96) -> 0
D97: =SUMIFS('CETAK NOTA'!$C$6:$C$21:'CETAK NOTA'!$C$1730:$C$1746,'CETAK NOTA'!$D$6:$D$21:'CETAK NOTA'!$D$1730:$D$1746,E97,'CETAK NOTA'!$B$6:$B$21:'CETAK NOTA'!$B$1730:$B$1746,B97) -> 0 | F97: =SUMIFS('CETAK NOTA'!$C$6:$C$21:'CETAK NOTA'!$C$1730:$C$1746,'CETAK NOTA'!$D$6:$D$21:'CETAK NOTA'!$D$1730:$D$1746,G97,'CETAK NOTA'!$B$6:$B$21:'CETAK NOTA'!$B$1730:$B$1746,B97) -> 0
D98: =SUMIFS('CETAK NOTA'!$C$6:$C$21:'CETAK NOTA'!$C$1730:$C$1746,'CETAK NOTA'!$D$6:$D$21:'CETAK NOTA'!$D$1730:$D$1746,E98,'CETAK NOTA'!$B$6:$B$21:'CETAK NOTA'!$B$1730:$B$1746,B98) -> 0 | F98: =SUMIFS('CETAK NOTA'!$C$6:$C$21:'CETAK NOTA'!$C$1730:$C$1746,'CETAK NOTA'!$D$6:$D$21:'CETAK NOTA'!$D$1730:$D$1746,G98,'CETAK NOTA'!$B$6:$B$21:'CETAK NOTA'!$B$1730:$B$1746,B98) -> 0
D99: =SUMIFS('CETAK NOTA'!$C$6:$C$21:'CETAK NOTA'!$C$1730:$C$1746,'CETAK NOTA'!$D$6:$D$21:'CETAK NOTA'!$D$1730:$D$1746,E99,'CETAK NOTA'!$B$6:$B$21:'CETAK NOTA'!$B$1730:$B$1746,B99) -> 0 | F99: =SUMIFS('CETAK NOTA'!$C$6:$C$21:'CETAK NOTA'!$C$1730:$C$1746,'CETAK NOTA'!$D$6:$D$21:'CETAK NOTA'!$D$1730:$D$1746,G99,'CETAK NOTA'!$B$6:$B$21:'CETAK NOTA'!$B$1730:$B$1746,B99) -> 0
D100: =SUMIFS('CETAK NOTA'!$C$6:$C$21:'CETAK NOTA'!$C$1730:$C$1746,'CETAK NOTA'!$D$6:$D$21:'CETAK NOTA'!$D$1730:$D$1746,E100,'CETAK NOTA'!$B$6:$B$21:'CETAK NOTA'!$B$1730:$B$1746,B100) -> 0 | F100: =SUMIFS('CETAK NOTA'!$C$6:$C$21:'CETAK NOTA'!$C$1730:$C$1746,'CETAK NOTA'!$D$6:$D$21:'CETAK NOTA'!$D$1730:$D$1746,G100,'CETAK NOTA'!$B$6:$B$21:'CETAK NOTA'!$B$1730:$B$1746,B100) -> 0
D101: =SUMIFS('CETAK NOTA'!$C$6:$C$21:'CETAK NOTA'!$C$1730:$C$1746,'CETAK NOTA'!$D$6:$D$21:'CETAK NOTA'!$D$1730:$D$1746,E101,'CETAK NOTA'!$B$6:$B$21:'CETAK NOTA'!$B$1730:$B$1746,B101) -> 0 | F101: =SUMIFS('CETAK NOTA'!$C$6:$C$21:'CETAK NOTA'!$C$1730:$C$1746,'CETAK NOTA'!$D$6:$D$21:'CETAK NOTA'!$D$1730:$D$1746,G101,'CETAK NOTA'!$B$6:$B$21:'CETAK NOTA'!$B$1730:$B$1746,B101) -> 0
D102: =SUMIFS('CETAK NOTA'!$C$6:$C$21:'CETAK NOTA'!$C$1730:$C$1746,'CETAK NOTA'!$D$6:$D$21:'CETAK NOTA'!$D$1730:$D$1746,E102,'CETAK NOTA'!$B$6:$B$21:'CETAK NOTA'!$B$1730:$B$1746,B102) -> 0 | F102: =SUMIFS('CETAK NOTA'!$C$6:$C$21:'CETAK NOTA'!$C$1730:$C$1746,'CETAK NOTA'!$D$6:$D$21:'CETAK NOTA'!$D$1730:$D$1746,G102,'CETAK NOTA'!$B$6:$B$21:'CETAK NOTA'!$B$1730:$B$1746,B102) -> 0
D103: =SUMIFS('CETAK NOTA'!$C$6:$C$21:'CETAK NOTA'!$C$1730:$C$1746,'CETAK NOTA'!$D$6:$D$21:'CETAK NOTA'!$D$1730:$D$1746,E103,'CETAK NOTA'!$B$6:$B$21:'CETAK NOTA'!$B$1730:$B$1746,B103) -> 0 | F103: =SUMIFS('CETAK NOTA'!$C$6:$C$21:'CETAK NOTA'!$C$1730:$C$1746,'CETAK NOTA'!$D$6:$D$21:'CETAK NOTA'!$D$1730:$D$1746,G103,'CETAK NOTA'!$B$6:$B$21:'CETAK NOTA'!$B$1730:$B$1746,B103) -> 0
D104: =SUMIFS('CETAK NOTA'!$C$6:$C$21:'CETAK NOTA'!$C$1730:$C$1746,'CETAK NOTA'!$D$6:$D$21:'CETAK NOTA'!$D$1730:$D$1746,E104,'CETAK NOTA'!$B$6:$B$21:'CETAK NOTA'!$B$1730:$B$1746,B104) -> 0 | F104: =SUMIFS('CETAK NOTA'!$C$6:$C$21:'CETAK NOTA'!$C$1730:$C$1746,'CETAK NOTA'!$D$6:$D$21:'CETAK NOTA'!$D$1730:$D$1746,G104,'CETAK NOTA'!$B$6:$B$21:'CETAK NOTA'!$B$1730:$B$1746,B104) -> 0
D105: =SUMIFS('CETAK NOTA'!$C$6:$C$21:'CETAK NOTA'!$C$1730:$C$1746,'CETAK NOTA'!$D$6:$D$21:'CETAK NOTA'!$D$1730:$D$1746,E105,'CETAK NOTA'!$B$6:$B$21:'CETAK NOTA'!$B$1730:$B$1746,B105) -> 0 | F105: =SUMIFS('CETAK NOTA'!$C$6:$C$21:'CETAK NOTA'!$C$1730:$C$1746,'CETAK NOTA'!$D$6:$D$21:'CETAK NOTA'!$D$1730:$D$1746,G105,'CETAK NOTA'!$B$6:$B$21:'CETAK NOTA'!$B$1730:$B$1746,B105) -> 0
D106: =SUMIFS('CETAK NOTA'!$C$6:$C$21:'CETAK NOTA'!$C$1730:$C$1746,'CETAK NOTA'!$D$6:$D$21:'CETAK NOTA'!$D$1730:$D$1746,E106,'CETAK NOTA'!$B$6:$B$21:'CETAK NOTA'!$B$1730:$B$1746,B106) -> 0 | F106: =SUMIFS('CETAK NOTA'!$C$6:$C$21:'CETAK NOTA'!$C$1730:$C$1746,'CETAK NOTA'!$D$6:$D$21:'CETAK NOTA'!$D$1730:$D$1746,G106,'CETAK NOTA'!$B$6:$B$21:'CETAK NOTA'!$B$1730:$B$1746,B106) -> 0
D107: =SUMIFS('CETAK NOTA'!$C$6:$C$21:'CETAK NOTA'!$C$1730:$C$1746,'CETAK NOTA'!$D$6:$D$21:'CETAK NOTA'!$D$1730:$D$1746,E107,'CETAK NOTA'!$B$6:$B$21:'CETAK NOTA'!$B$1730:$B$1746,B107) -> 0 | F107: =SUMIFS('CETAK NOTA'!$C$6:$C$21:'CETAK NOTA'!$C$1730:$C$1746,'CETAK NOTA'!$D$6:$D$21:'CETAK NOTA'!$D$1730:$D$1746,G107,'CETAK NOTA'!$B$6:$B$21:'CETAK NOTA'!$B$1730:$B$1746,B107) -> 0
D108: =SUMIFS('CETAK NOTA'!$C$6:$C$21:'CETAK NOTA'!$C$1730:$C$1746,'CETAK NOTA'!$D$6:$D$21:'CETAK NOTA'!$D$1730:$D$1746,E108,'CETAK NOTA'!$B$6:$B$21:'CETAK NOTA'!$B$1730:$B$1746,B108) -> 0 | F108: =SUMIFS('CETAK NOTA'!$C$6:$C$21:'CETAK NOTA'!$C$1730:$C$1746,'CETAK NOTA'!$D$6:$D$21:'CETAK NOTA'!$D$1730:$D$1746,G108,'CETAK NOTA'!$B$6:$B$21:'CETAK NOTA'!$B$1730:$B$1746,B108) -> 0
D109: =SUMIFS('CETAK NOTA'!$C$6:$C$21:'CETAK NOTA'!$C$1730:$C$1746,'CETAK NOTA'!$D$6:$D$21:'CETAK NOTA'!$D$1730:$D$1746,E109,'CETAK NOTA'!$B$6:$B$21:'CETAK NOTA'!$B$1730:$B$1746,B109) -> 0 | F109: =SUMIFS('CETAK NOTA'!$C$6:$C$21:'CETAK NOTA'!$C$1730:$C$1746,'CETAK NOTA'!$D$6:$D$21:'CETAK NOTA'!$D$1730:$D$1746,G109,'CETAK NOTA'!$B$6:$B$21:'CETAK NOTA'!$B$1730:$B$1746,B109) -> 0
D110: =SUMIFS('CETAK NOTA'!$C$6:$C$21:'CETAK NOTA'!$C$1730:$C$1746,'CETAK NOTA'!$D$6:$D$21:'CETAK NOTA'!$D$1730:$D$1746,E110,'CETAK NOTA'!$B$6:$B$21:'CETAK NOTA'!$B$1730:$B$1746,B110) -> 0 | F110: =SUMIFS('CETAK NOTA'!$C$6:$C$21:'CETAK NOTA'!$C$1730:$C$1746,'CETAK NOTA'!$D$6:$D$21:'CETAK NOTA'!$D$1730:$D$1746,G110,'CETAK NOTA'!$B$6:$B$21:'CETAK NOTA'!$B$1730:$B$1746,B110) -> 0
D111: =SUMIFS('CETAK NOTA'!$C$6:$C$21:'CETAK NOTA'!$C$1730:$C$1746,'CETAK NOTA'!$D$6:$D$21:'CETAK NOTA'!$D$1730:$D$1746,E111,'CETAK NOTA'!$B$6:$B$21:'CETAK NOTA'!$B$1730:$B$1746,B111) -> 0 | F111: =SUMIFS('CETAK NOTA'!$C$6:$C$21:'CETAK NOTA'!$C$1730:$C$1746,'CETAK NOTA'!$D$6:$D$21:'CETAK NOTA'!$D$1730:$D$1746,G111,'CETAK NOTA'!$B$6:$B$21:'CETAK NOTA'!$B$1730:$B$1746,B111) -> 0
D112: =SUMIFS('CETAK NOTA'!$C$6:$C$21:'CETAK NOTA'!$C$1730:$C$1746,'CETAK NOTA'!$D$6:$D$21:'CETAK NOTA'!$D$1730:$D$1746,E112,'CETAK NOTA'!$B$6:$B$21:'CETAK NOTA'!$B$1730:$B$1746,B112) -> 0 | F112: =SUMIFS('CETAK NOTA'!$C$6:$C$21:'CETAK NOTA'!$C$1730:$C$1746,'CETAK NOTA'!$D$6:$D$21:'CETAK NOTA'!$D$1730:$D$1746,G112,'CETAK NOTA'!$B$6:$B$21:'CETAK NOTA'!$B$1730:$B$1746,B112) -> 0
D113: =SUMIFS('CETAK NOTA'!$C$6:$C$21:'CETAK NOTA'!$C$1730:$C$1746,'CETAK NOTA'!$D$6:$D$21:'CETAK NOTA'!$D$1730:$D$1746,E113,'CETAK NOTA'!$B$6:$B$21:'CETAK NOTA'!$B$1730:$B$1746,B113) -> 0 | F113: =SUMIFS('CETAK NOTA'!$C$6:$C$21:'CETAK NOTA'!$C$1730:$C$1746,'CETAK NOTA'!$D$6:$D$21:'CETAK NOTA'!$D$1730:$D$1746,G113,'CETAK NOTA'!$B$6:$B$21:'CETAK NOTA'!$B$1730:$B$1746,B113) -> 0
D114: =SUMIFS('CETAK NOTA'!$C$6:$C$21:'CETAK NOTA'!$C$1730:$C$1746,'CETAK NOTA'!$D$6:$D$21:'CETAK NOTA'!$D$1730:$D$1746,E114,'CETAK NOTA'!$B$6:$B$21:'CETAK NOTA'!$B$1730:$B$1746,B114) -> 0 | F114: =SUMIFS('CETAK NOTA'!$C$6:$C$21:'CETAK NOTA'!$C$1730:$C$1746,'CETAK NOTA'!$D$6:$D$21:'CETAK NOTA'!$D$1730:$D$1746,G114,'CETAK NOTA'!$B$6:$B$21:'CETAK NOTA'!$B$1730:$B$1746,B114) -> 0
D115: =SUMIFS('CETAK NOTA'!$C$6:$C$21:'CETAK NOTA'!$C$1730:$C$1746,'CETAK NOTA'!$D$6:$D$21:'CETAK NOTA'!$D$1730:$D$1746,E115,'CETAK NOTA'!$B$6:$B$21:'CETAK NOTA'!$B$1730:$B$1746,B115) -> 0 | F115: =SUMIFS('CETAK NOTA'!$C$6:$C$21:'CETAK NOTA'!$C$1730:$C$1746,'CETAK NOTA'!$D$6:$D$21:'CETAK NOTA'!$D$1730:$D$1746,G115,'CETAK NOTA'!$B$6:$B$21:'CETAK NOTA'!$B$1730:$B$1746,B115) -> 0
D116: =SUMIFS('CETAK NOTA'!$C$6:$C$21:'CETAK NOTA'!$C$1730:$C$1746,'CETAK NOTA'!$D$6:$D$21:'CETAK NOTA'!$D$1730:$D$1746,E116,'CETAK NOTA'!$B$6:$B$21:'CETAK NOTA'!$B$1730:$B$1746,B116) -> 0 | F116: =SUMIFS('CETAK NOTA'!$C$6:$C$21:'CETAK NOTA'!$C$1730:$C$1746,'CETAK NOTA'!$D$6:$D$21:'CETAK NOTA'!$D$1730:$D$1746,G116,'CETAK NOTA'!$B$6:$B$21:'CETAK NOTA'!$B$1730:$B$1746,B116) -> 0
D117: =SUMIFS('CETAK NOTA'!$C$6:$C$21:'CETAK NOTA'!$C$1730:$C$1746,'CETAK NOTA'!$D$6:$D$21:'CETAK NOTA'!$D$1730:$D$1746,E117,'CETAK NOTA'!$B$6:$B$21:'CETAK NOTA'!$B$1730:$B$1746,B117) -> 0 | F117: =SUMIFS('CETAK NOTA'!$C$6:$C$21:'CETAK NOTA'!$C$1730:$C$1746,'CETAK NOTA'!$D$6:$D$21:'CETAK NOTA'!$D$1730:$D$1746,G117,'CETAK NOTA'!$B$6:$B$21:'CETAK NOTA'!$B$1730:$B$1746,B117) -> 0
D118: =SUMIFS('CETAK NOTA'!$C$6:$C$21:'CETAK NOTA'!$C$1730:$C$1746,'CETAK NOTA'!$D$6:$D$21:'CETAK NOTA'!$D$1730:$D$1746,E118,'CETAK NOTA'!$B$6:$B$21:'CETAK NOTA'!$B$1730:$B$1746,B118) -> 0 | F118: =SUMIFS('CETAK NOTA'!$C$6:$C$21:'CETAK NOTA'!$C$1730:$C$1746,'CETAK NOTA'!$D$6:$D$21:'CETAK NOTA'!$D$1730:$D$1746,G118,'CETAK NOTA'!$B$6:$B$21:'CETAK NOTA'!$B$1730:$B$1746,B118) -> 0
D119: =SUMIFS('CETAK NOTA'!$C$6:$C$21:'CETAK NOTA'!$C$1730:$C$1746,'CETAK NOTA'!$D$6:$D$21:'CETAK NOTA'!$D$1730:$D$1746,E119,'CETAK NOTA'!$B$6:$B$21:'CETAK NOTA'!$B$1730:$B$1746,B119) -> 0 | F119: =SUMIFS('CETAK NOTA'!$C$6:$C$21:'CETAK NOTA'!$C$1730:$C$1746,'CETAK NOTA'!$D$6:$D$21:'CETAK NOTA'!$D$1730:$D$1746,G119,'CETAK NOTA'!$B$6:$B$21:'CETAK NOTA'!$B$1730:$B$1746,B119) -> 0
D120: =SUMIFS('CETAK NOTA'!$C$6:$C$21:'CETAK NOTA'!$C$1730:$C$1746,'CETAK NOTA'!$D$6:$D$21:'CETAK NOTA'!$D$1730:$D$1746,E120,'CETAK NOTA'!$B$6:$B$21:'CETAK NOTA'!$B$1730:$B$1746,B120) -> 0 | F120: =SUMIFS('CETAK NOTA'!$C$6:$C$21:'CETAK NOTA'!$C$1730:$C$1746,'CETAK NOTA'!$D$6:$D$21:'CETAK NOTA'!$D$1730:$D$1746,G120,'CETAK NOTA'!$B$6:$B$21:'CETAK NOTA'!$B$1730:$B$1746,B120) -> 0
D121: =SUMIFS('CETAK NOTA'!$C$6:$C$21:'CETAK NOTA'!$C$1730:$C$1746,'CETAK NOTA'!$D$6:$D$21:'CETAK NOTA'!$D$1730:$D$1746,E121,'CETAK NOTA'!$B$6:$B$21:'CETAK NOTA'!$B$1730:$B$1746,B121) -> 0 | F121: =SUMIFS('CETAK NOTA'!$C$6:$C$21:'CETAK NOTA'!$C$1730:$C$1746,'CETAK NOTA'!$D$6:$D$21:'CETAK NOTA'!$D$1730:$D$1746,G121,'CETAK NOTA'!$B$6:$B$21:'CETAK NOTA'!$B$1730:$B$1746,B121) -> 0
D122: =SUMIFS('CETAK NOTA'!$C$6:$C$21:'CETAK NOTA'!$C$1730:$C$1746,'CETAK NOTA'!$D$6:$D$21:'CETAK NOTA'!$D$1730:$D$1746,E122,'CETAK NOTA'!$B$6:$B$21:'CETAK NOTA'!$B$1730:$B$1746,B122) -> 0 | F122: =SUMIFS('CETAK NOTA'!$C$6:$C$21:'CETAK NOTA'!$C$1730:$C$1746,'CETAK NOTA'!$D$6:$D$21:'CETAK NOTA'!$D$1730:$D$1746,G122,'CETAK NOTA'!$B$6:$B$21:'CETAK NOTA'!$B$1730:$B$1746,B122) -> 0
D123: =SUMIFS('CETAK NOTA'!$C$6:$C$21:'CETAK NOTA'!$C$1730:$C$1746,'CETAK NOTA'!$D$6:$D$21:'CETAK NOTA'!$D$1730:$D$1746,E123,'CETAK NOTA'!$B$6:$B$21:'CETAK NOTA'!$B$1730:$B$1746,B123) -> 0 | F123: =SUMIFS('CETAK NOTA'!$C$6:$C$21:'CETAK NOTA'!$C$1730:$C$1746,'CETAK NOTA'!$D$6:$D$21:'CETAK NOTA'!$D$1730:$D$1746,G123,'CETAK NOTA'!$B$6:$B$21:'CETAK NOTA'!$B$1730:$B$1746,B123) -> 0
D124: =SUMIFS('CETAK NOTA'!$C$6:$C$21:'CETAK NOTA'!$C$1730:$C$1746,'CETAK NOTA'!$D$6:$D$21:'CETAK NOTA'!$D$1730:$D$1746,E124,'CETAK NOTA'!$B$6:$B$21:'CETAK NOTA'!$B$1730:$B$1746,B124) -> 0 | F124: =SUMIFS('CETAK NOTA'!$C$6:$C$21:'CETAK NOTA'!$C$1730:$C$1746,'CETAK NOTA'!$D$6:$D$21:'CETAK NOTA'!$D$1730:$D$1746,G124,'CETAK NOTA'!$B$6:$B$21:'CETAK NOTA'!$B$1730:$B$1746,B124) -> 0
D125: =SUMIFS('CETAK NOTA'!$C$6:$C$21:'CETAK NOTA'!$C$1730:$C$1746,'CETAK NOTA'!$D$6:$D$21:'CETAK NOTA'!$D$1730:$D$1746,E125,'CETAK NOTA'!$B$6:$B$21:'CETAK NOTA'!$B$1730:$B$1746,B125) -> 0 | F125: =SUMIFS('CETAK NOTA'!$C$6:$C$21:'CETAK NOTA'!$C$1730:$C$1746,'CETAK NOTA'!$D$6:$D$21:'CETAK NOTA'!$D$1730:$D$1746,G125,'CETAK NOTA'!$B$6:$B$21:'CETAK NOTA'!$B$1730:$B$1746,B125) -> 0
D126: =SUMIFS('CETAK NOTA'!$C$6:$C$21:'CETAK NOTA'!$C$1730:$C$1746,'CETAK NOTA'!$D$6:$D$21:'CETAK NOTA'!$D$1730:$D$1746,E126,'CETAK NOTA'!$B$6:$B$21:'CETAK NOTA'!$B$1730:$B$1746,B126) -> 0 | F126: =SUMIFS('CETAK NOTA'!$C$6:$C$21:'CETAK NOTA'!$C$1730:$C$1746,'CETAK NOTA'!$D$6:$D$21:'CETAK NOTA'!$D$1730:$D$1746,G126,'CETAK NOTA'!$B$6:$B$21:'CETAK NOTA'!$B$1730:$B$1746,B126) -> 0
D127: =SUMIFS('CETAK NOTA'!$C$6:$C$21:'CETAK NOTA'!$C$1730:$C$1746,'CETAK NOTA'!$D$6:$D$21:'CETAK NOTA'!$D$1730:$D$1746,E127,'CETAK NOTA'!$B$6:$B$21:'CETAK NOTA'!$B$1730:$B$1746,B127) -> 0 | F127: =SUMIFS('CETAK NOTA'!$C$6:$C$21:'CETAK NOTA'!$C$1730:$C$1746,'CETAK NOTA'!$D$6:$D$21:'CETAK NOTA'!$D$1730:$D$1746,G127,'CETAK NOTA'!$B$6:$B$21:'CETAK NOTA'!$B$1730:$B$1746,B127) -> 0
D128: =SUMIFS('CETAK NOTA'!$C$6:$C$21:'CETAK NOTA'!$C$1730:$C$1746,'CETAK NOTA'!$D$6:$D$21:'CETAK NOTA'!$D$1730:$D$1746,E128,'CETAK NOTA'!$B$6:$B$21:'CETAK NOTA'!$B$1730:$B$1746,B128) -> 0 | F128: =SUMIFS('CETAK NOTA'!$C$6:$C$21:'CETAK NOTA'!$C$1730:$C$1746,'CETAK NOTA'!$D$6:$D$21:'CETAK NOTA'!$D$1730:$D$1746,G128,'CETAK NOTA'!$B$6:$B$21:'CETAK NOTA'!$B$1730:$B$1746,B128) -> 0
D129: =SUMIFS('CETAK NOTA'!$C$6:$C$21:'CETAK NOTA'!$C$1730:$C$1746,'CETAK NOTA'!$D$6:$D$21:'CETAK NOTA'!$D$1730:$D$1746,E129,'CETAK NOTA'!$B$6:$B$21:'CETAK NOTA'!$B$1730:$B$1746,B129) -> 0 | F129: =SUMIFS('CETAK NOTA'!$C$6:$C$21:'CETAK NOTA'!$C$1730:$C$1746,'CETAK NOTA'!$D$6:$D$21:'CETAK NOTA'!$D$1730:$D$1746,G129,'CETAK NOTA'!$B$6:$B$21:'CETAK NOTA'!$B$1730:$B$1746,B129) -> 0
C130: =IF(AND(K130=0,L130=0),"",IF(AND(D130>0,K130>L130),"RM","TK")) ->  | D130: =SUMIFS('CETAK NOTA'!$C$6:$C$21:'CETAK NOTA'!$C$1730:$C$1746,'CETAK NOTA'!$D$6:$D$21:'CETAK NOTA'!$D$1730:$D$1746,E130,'CETAK NOTA'!$B$6:$B$21:'CETAK NOTA'!$B$1730:$B$1746,B130) -> 0 | F130: =SUMIFS('CETAK NOTA'!$C$6:$C$21:'CETAK NOTA'!$C$1730:$C$1746,'CETAK NOTA'!$D$6:$D$21:'CETAK NOTA'!$D$1730:$D$1746,G130,'CETAK NOTA'!$B$6:$B$21:'CETAK NOTA'!$B$1730:$B$1746,B130) -> 0
D131: =SUMIFS('CETAK NOTA'!$C$6:$C$21:'CETAK NOTA'!$C$1730:$C$1746,'CETAK NOTA'!$D$6:$D$21:'CETAK NOTA'!$D$1730:$D$1746,E131,'CETAK NOTA'!$B$6:$B$21:'CETAK NOTA'!$B$1730:$B$1746,B131) -> 0 | F131: =SUMIFS('CETAK NOTA'!$C$6:$C$21:'CETAK NOTA'!$C$1730:$C$1746,'CETAK NOTA'!$D$6:$D$21:'CETAK NOTA'!$D$1730:$D$1746,G131,'CETAK NOTA'!$B$6:$B$21:'CETAK NOTA'!$B$1730:$B$1746,B131) -> 0
D132: =SUMIFS('CETAK NOTA'!$C$6:$C$21:'CETAK NOTA'!$C$1730:$C$1746,'CETAK NOTA'!$D$6:$D$21:'CETAK NOTA'!$D$1730:$D$1746,E132,'CETAK NOTA'!$B$6:$B$21:'CETAK NOTA'!$B$1730:$B$1746,B132) -> 0 | F132: =SUMIFS('CETAK NOTA'!$C$6:$C$21:'CETAK NOTA'!$C$1730:$C$1746,'CETAK NOTA'!$D$6:$D$21:'CETAK NOTA'!$D$1730:$D$1746,G132,'CETAK NOTA'!$B$6:$B$21:'CETAK NOTA'!$B$1730:$B$1746,B132) -> 0
D133: =SUMIFS('CETAK NOTA'!$C$6:$C$21:'CETAK NOTA'!$C$1730:$C$1746,'CETAK NOTA'!$D$6:$D$21:'CETAK NOTA'!$D$1730:$D$1746,E133,'CETAK NOTA'!$B$6:$B$21:'CETAK NOTA'!$B$1730:$B$1746,B133) -> 0 | F133: =SUMIFS('CETAK NOTA'!$C$6:$C$21:'CETAK NOTA'!$C$1730:$C$1746,'CETAK NOTA'!$D$6:$D$21:'CETAK NOTA'!$D$1730:$D$1746,G133,'CETAK NOTA'!$B$6:$B$21:'CETAK NOTA'!$B$1730:$B$1746,B133) -> 0
D134: =SUMIFS('CETAK NOTA'!$C$6:$C$21:'CETAK NOTA'!$C$1730:$C$1746,'CETAK NOTA'!$D$6:$D$21:'CETAK NOTA'!$D$1730:$D$1746,E134,'CETAK NOTA'!$B$6:$B$21:'CETAK NOTA'!$B$1730:$B$1746,B134) -> 0 | F134: =SUMIFS('CETAK NOTA'!$C$6:$C$21:'CETAK NOTA'!$C$1730:$C$1746,'CETAK NOTA'!$D$6:$D$21:'CETAK NOTA'!$D$1730:$D$1746,G134,'CETAK NOTA'!$B$6:$B$21:'CETAK NOTA'!$B$1730:$B$1746,B134) -> 0
D135: =SUMIFS('CETAK NOTA'!$C$6:$C$21:'CETAK NOTA'!$C$1730:$C$1746,'CETAK NOTA'!$D$6:$D$21:'CETAK NOTA'!$D$1730:$D$1746,E135,'CETAK NOTA'!$B$6:$B$21:'CETAK NOTA'!$B$1730:$B$1746,B135) -> 0 | F135: =SUMIFS('CETAK NOTA'!$C$6:$C$21:'CETAK NOTA'!$C$1730:$C$1746,'CETAK NOTA'!$D$6:$D$21:'CETAK NOTA'!$D$1730:$D$1746,G135,'CETAK NOTA'!$B$6:$B$21:'CETAK NOTA'!$B$1730:$B$1746,B135) -> 0
D136: =SUMIFS('CETAK NOTA'!$C$6:$C$21:'CETAK NOTA'!$C$1730:$C$1746,'CETAK NOTA'!$D$6:$D$21:'CETAK NOTA'!$D$1730:$D$1746,E136,'CETAK NOTA'!$B$6:$B$21:'CETAK NOTA'!$B$1730:$B$1746,B136) -> 0 | F136: =SUMIFS('CETAK NOTA'!$C$6:$C$21:'CETAK NOTA'!$C$1730:$C$1746,'CETAK NOTA'!$D$6:$D$21:'CETAK NOTA'!$D$1730:$D$1746,G136,'CETAK NOTA'!$B$6:$B$21:'CETAK NOTA'!$B$1730:$B$1746,B136) -> 0
D137: =SUMIFS('CETAK NOTA'!$C$6:$C$21:'CETAK NOTA'!$C$1730:$C$1746,'CETAK NOTA'!$D$6:$D$21:'CETAK NOTA'!$D$1730:$D$1746,E137,'CETAK NOTA'!$B$6:$B$21:'CETAK NOTA'!$B$1730:$B$1746,B137) -> 0 | F137: =SUMIFS('CETAK NOTA'!$C$6:$C$21:'CETAK NOTA'!$C$1730:$C$1746,'CETAK NOTA'!$D$6:$D$21:'CETAK NOTA'!$D$1730:$D$1746,G137,'CETAK NOTA'!$B$6:$B$21:'CETAK NOTA'!$B$1730:$B$1746,B137) -> 0
D138: =SUMIFS('CETAK NOTA'!$C$6:$C$21:'CETAK NOTA'!$C$1730:$C$1746,'CETAK NOTA'!$D$6:$D$21:'CETAK NOTA'!$D$1730:$D$1746,E138,'CETAK NOTA'!$B$6:$B$21:'CETAK NOTA'!$B$1730:$B$1746,B138) -> 0 | F138: =SUMIFS('CETAK NOTA'!$C$6:$C$21:'CETAK NOTA'!$C$1730:$C$1746,'CETAK NOTA'!$D$6:$D$21:'CETAK NOTA'!$D$1730:$D$1746,G138,'CETAK NOTA'!$B$6:$B$21:'CETAK NOTA'!$B$1730:$B$1746,B138) -> 0
D139: =SUMIFS('CETAK NOTA'!$C$6:$C$21:'CETAK NOTA'!$C$1730:$C$1746,'CETAK NOTA'!$D$6:$D$21:'CETAK NOTA'!$D$1730:$D$1746,E139,'CETAK NOTA'!$B$6:$B$21:'CETAK NOTA'!$B$1730:$B$1746,B139) -> 0 | F139: =SUMIFS('CETAK NOTA'!$C$6:$C$21:'CETAK NOTA'!$C$1730:$C$1746,'CETAK NOTA'!$D$6:$D$21:'CETAK NOTA'!$D$1730:$D$1746,G139,'CETAK NOTA'!$B$6:$B$21:'CETAK NOTA'!$B$1730:$B$1746,B139) -> 0
D140: =SUMIFS('CETAK NOTA'!$C$6:$C$21:'CETAK NOTA'!$C$1730:$C$1746,'CETAK NOTA'!$D$6:$D$21:'CETAK NOTA'!$D$1730:$D$1746,E140,'CETAK NOTA'!$B$6:$B$21:'CETAK NOTA'!$B$1730:$B$1746,B140) -> 0 | F140: =SUMIFS('CETAK NOTA'!$C$6:$C$21:'CETAK NOTA'!$C$1730:$C$1746,'CETAK NOTA'!$D$6:$D$21:'CETAK NOTA'!$D$1730:$D$1746,G140,'CETAK NOTA'!$B$6:$B$21:'CETAK NOTA'!$B$1730:$B$1746,B140) -> 0
D141: =SUMIFS('CETAK NOTA'!$C$6:$C$21:'CETAK NOTA'!$C$1730:$C$1746,'CETAK NOTA'!$D$6:$D$21:'CETAK NOTA'!$D$1730:$D$1746,E141,'CETAK NOTA'!$B$6:$B$21:'CETAK NOTA'!$B$1730:$B$1746,B141) -> 0 | F141: =SUMIFS('CETAK NOTA'!$C$6:$C$21:'CETAK NOTA'!$C$1730:$C$1746,'CETAK NOTA'!$D$6:$D$21:'CETAK NOTA'!$D$1730:$D$1746,G141,'CETAK NOTA'!$B$6:$B$21:'CETAK NOTA'!$B$1730:$B$1746,B141) -> 0
D142: =SUMIFS('CETAK NOTA'!$C$6:$C$21:'CETAK NOTA'!$C$1730:$C$1746,'CETAK NOTA'!$D$6:$D$21:'CETAK NOTA'!$D$1730:$D$1746,E142,'CETAK NOTA'!$B$6:$B$21:'CETAK NOTA'!$B$1730:$B$1746,B142) -> 0 | F142: =SUMIFS('CETAK NOTA'!$C$6:$C$21:'CETAK NOTA'!$C$1730:$C$1746,'CETAK NOTA'!$D$6:$D$21:'CETAK NOTA'!$D$1730:$D$1746,G142,'CETAK NOTA'!$B$6:$B$21:'CETAK NOTA'!$B$1730:$B$1746,B142) -> 0
D143: =SUMIFS('CETAK NOTA'!$C$6:$C$21:'CETAK NOTA'!$C$1730:$C$1746,'CETAK NOTA'!$D$6:$D$21:'CETAK NOTA'!$D$1730:$D$1746,E143,'CETAK NOTA'!$B$6:$B$21:'CETAK NOTA'!$B$1730:$B$1746,B143) -> 0 | F143: =SUMIFS('CETAK NOTA'!$C$6:$C$21:'CETAK NOTA'!$C$1730:$C$1746,'CETAK NOTA'!$D$6:$D$21:'CETAK NOTA'!$D$1730:$D$1746,G143,'CETAK NOTA'!$B$6:$B$21:'CETAK NOTA'!$B$1730:$B$1746,B143) -> 0
D144: =SUMIFS('CETAK NOTA'!$C$6:$C$21:'CETAK NOTA'!$C$1730:$C$1746,'CETAK NOTA'!$D$6:$D$21:'CETAK NOTA'!$D$1730:$D$1746,E144,'CETAK NOTA'!$B$6:$B$21:'CETAK NOTA'!$B$1730:$B$1746,B144) -> 0 | F144: =SUMIFS('CETAK NOTA'!$C$6:$C$21:'CETAK NOTA'!$C$1730:$C$1746,'CETAK NOTA'!$D$6:$D$21:'CETAK NOTA'!$D$1730:$D$1746,G144,'CETAK NOTA'!$B$6:$B$21:'CETAK NOTA'!$B$1730:$B$1746,B144) -> 0
D145: =SUMIFS('CETAK NOTA'!$C$6:$C$21:'CETAK NOTA'!$C$1730:$C$1746,'CETAK NOTA'!$D$6:$D$21:'CETAK NOTA'!$D$1730:$D$1746,E145,'CETAK NOTA'!$B$6:$B$21:'CETAK NOTA'!$B$1730:$B$1746,B145) -> 0 | F145: =SUMIFS('CETAK NOTA'!$C$6:$C$21:'CETAK NOTA'!$C$1730:$C$1746,'CETAK NOTA'!$D$6:$D$21:'CETAK NOTA'!$D$1730:$D$1746,G145,'CETAK NOTA'!$B$6:$B$21:'CETAK NOTA'!$B$1730:$B$1746,B145) -> 0
D146: =SUMIFS('CETAK NOTA'!$C$6:$C$21:'CETAK NOTA'!$C$1730:$C$1746,'CETAK NOTA'!$D$6:$D$21:'CETAK NOTA'!$D$1730:$D$1746,E146,'CETAK NOTA'!$B$6:$B$21:'CETAK NOTA'!$B$1730:$B$1746,B146) -> 0 | F146: =SUMIFS('CETAK NOTA'!$C$6:$C$21:'CETAK NOTA'!$C$1730:$C$1746,'CETAK NOTA'!$D$6:$D$21:'CETAK NOTA'!$D$1730:$D$1746,G146,'CETAK NOTA'!$B$6:$B$21:'CETAK NOTA'!$B$1730:$B$1746,B146) -> 0
D147: =SUMIFS('CETAK NOTA'!$C$6:$C$21:'CETAK NOTA'!$C$1730:$C$1746,'CETAK NOTA'!$D$6:$D$21:'CETAK NOTA'!$D$1730:$D$1746,E147,'CETAK NOTA'!$B$6:$B$21:'CETAK NOTA'!$B$1730:$B$1746,B147) -> 0 | F147: =SUMIFS('CETAK NOTA'!$C$6:$C$21:'CETAK NOTA'!$C$1730:$C$1746,'CETAK NOTA'!$D$6:$D$21:'CETAK NOTA'!$D$1730:$D$1746,G147,'CETAK NOTA'!$B$6:$B$21:'CETAK NOTA'!$B$1730:$B$1746,B147) -> 0
D148: =SUMIFS('CETAK NOTA'!$C$6:$C$21:'CETAK NOTA'!$C$1730:$C$1746,'CETAK NOTA'!$D$6:$D$21:'CETAK NOTA'!$D$1730:$D$1746,E148,'CETAK NOTA'!$B$6:$B$21:'CETAK NOTA'!$B$1730:$B$1746,B148) -> 0 | F148: =SUMIFS('CETAK NOTA'!$C$6:$C$21:'CETAK NOTA'!$C$1730:$C$1746,'CETAK NOTA'!$D$6:$D$21:'CETAK NOTA'!$D$1730:$D$1746,G148,'CETAK NOTA'!$B$6:$B$21:'CETAK NOTA'!$B$1730:$B$1746,B148) -> 0
D149: =SUMIFS('CETAK NOTA'!$C$6:$C$21:'CETAK NOTA'!$C$1730:$C$1746,'CETAK NOTA'!$D$6:$D$21:'CETAK NOTA'!$D$1730:$D$1746,E149,'CETAK NOTA'!$B$6:$B$21:'CETAK NOTA'!$B$1730:$B$1746,B149) -> 0 | F149: =SUMIFS('CETAK NOTA'!$C$6:$C$21:'CETAK NOTA'!$C$1730:$C$1746,'CETAK NOTA'!$D$6:$D$21:'CETAK NOTA'!$D$1730:$D$1746,G149,'CETAK NOTA'!$B$6:$B$21:'CETAK NOTA'!$B$1730:$B$1746,B149) -> 0
D150: =SUMIFS('CETAK NOTA'!$C$6:$C$21:'CETAK NOTA'!$C$1730:$C$1746,'CETAK NOTA'!$D$6:$D$21:'CETAK NOTA'!$D$1730:$D$1746,E150,'CETAK NOTA'!$B$6:$B$21:'CETAK NOTA'!$B$1730:$B$1746,B150) -> 0 | F150: =SUMIFS('CETAK NOTA'!$C$6:$C$21:'CETAK NOTA'!$C$1730:$C$1746,'CETAK NOTA'!$D$6:$D$21:'CETAK NOTA'!$D$1730:$D$1746,G150,'CETAK NOTA'!$B$6:$B$21:'CETAK NOTA'!$B$1730:$B$1746,B150) -> 0
D151: =SUMIFS('CETAK NOTA'!$C$6:$C$21:'CETAK NOTA'!$C$1730:$C$1746,'CETAK NOTA'!$D$6:$D$21:'CETAK NOTA'!$D$1730:$D$1746,E151,'CETAK NOTA'!$B$6:$B$21:'CETAK NOTA'!$B$1730:$B$1746,B151) -> 0 | F151: =SUMIFS('CETAK NOTA'!$C$6:$C$21:'CETAK NOTA'!$C$1730:$C$1746,'CETAK NOTA'!$D$6:$D$21:'CETAK NOTA'!$D$1730:$D$1746,G151,'CETAK NOTA'!$B$6:$B$21:'CETAK NOTA'!$B$1730:$B$1746,B151) -> 0
D152: =SUMIFS('CETAK NOTA'!$C$6:$C$21:'CETAK NOTA'!$C$1730:$C$1746,'CETAK NOTA'!$D$6:$D$21:'CETAK NOTA'!$D$1730:$D$1746,E152,'CETAK NOTA'!$B$6:$B$21:'CETAK NOTA'!$B$1730:$B$1746,B152) -> 0 | F152: =SUMIFS('CETAK NOTA'!$C$6:$C$21:'CETAK NOTA'!$C$1730:$C$1746,'CETAK NOTA'!$D$6:$D$21:'CETAK NOTA'!$D$1730:$D$1746,G152,'CETAK NOTA'!$B$6:$B$21:'CETAK NOTA'!$B$1730:$B$1746,B152) -> 0
D153: =SUMIFS('CETAK NOTA'!$C$6:$C$21:'CETAK NOTA'!$C$1730:$C$1746,'CETAK NOTA'!$D$6:$D$21:'CETAK NOTA'!$D$1730:$D$1746,E153,'CETAK NOTA'!$B$6:$B$21:'CETAK NOTA'!$B$1730:$B$1746,B153) -> 0 | F153: =SUMIFS('CETAK NOTA'!$C$6:$C$21:'CETAK NOTA'!$C$1730:$C$1746,'CETAK NOTA'!$D$6:$D$21:'CETAK NOTA'!$D$1730:$D$1746,G153,'CETAK NOTA'!$B$6:$B$21:'CETAK NOTA'!$B$1730:$B$1746,B153) -> 0
D154: =SUMIFS('CETAK NOTA'!$C$6:$C$21:'CETAK NOTA'!$C$1730:$C$1746,'CETAK NOTA'!$D$6:$D$21:'CETAK NOTA'!$D$1730:$D$1746,E154,'CETAK NOTA'!$B$6:$B$21:'CETAK NOTA'!$B$1730:$B$1746,B154) -> 0 | F154: =SUMIFS('CETAK NOTA'!$C$6:$C$21:'CETAK NOTA'!$C$1730:$C$1746,'CETAK NOTA'!$D$6:$D$21:'CETAK NOTA'!$D$1730:$D$1746,G154,'CETAK NOTA'!$B$6:$B$21:'CETAK NOTA'!$B$1730:$B$1746,B154) -> 0
D155: =SUMIFS('CETAK NOTA'!$C$6:$C$21:'CETAK NOTA'!$C$1730:$C$1746,'CETAK NOTA'!$D$6:$D$21:'CETAK NOTA'!$D$1730:$D$1746,E155,'CETAK NOTA'!$B$6:$B$21:'CETAK NOTA'!$B$1730:$B$1746,B155) -> 0 | F155: =SUMIFS('CETAK NOTA'!$C$6:$C$21:'CETAK NOTA'!$C$1730:$C$1746,'CETAK NOTA'!$D$6:$D$21:'CETAK NOTA'!$D$1730:$D$1746,G155,'CETAK NOTA'!$B$6:$B$21:'CETAK NOTA'!$B$1730:$B$1746,B155) -> 0
D156: =SUMIFS('CETAK NOTA'!$C$6:$C$21:'CETAK NOTA'!$C$1730:$C$1746,'CETAK NOTA'!$D$6:$D$21:'CETAK NOTA'!$D$1730:$D$1746,E156,'CETAK NOTA'!$B$6:$B$21:'CETAK NOTA'!$B$1730:$B$1746,B156) -> 0 | F156: =SUMIFS('CETAK NOTA'!$C$6:$C$21:'CETAK NOTA'!$C$1730:$C$1746,'CETAK NOTA'!$D$6:$D$21:'CETAK NOTA'!$D$1730:$D$1746,G156,'CETAK NOTA'!$B$6:$B$21:'CETAK NOTA'!$B$1730:$B$1746,B156) -> 0
D157: =SUMIFS('CETAK NOTA'!$C$6:$C$21:'CETAK NOTA'!$C$1730:$C$1746,'CETAK NOTA'!$D$6:$D$21:'CETAK NOTA'!$D$1730:$D$1746,E157,'CETAK NOTA'!$B$6:$B$21:'CETAK NOTA'!$B$1730:$B$1746,B157) -> 0 | F157: =SUMIFS('CETAK NOTA'!$C$6:$C$21:'CETAK NOTA'!$C$1730:$C$1746,'CETAK NOTA'!$D$6:$D$21:'CETAK NOTA'!$D$1730:$D$1746,G157,'CETAK NOTA'!$B$6:$B$21:'CETAK NOTA'!$B$1730:$B$1746,B157) -> 0
D158: =SUMIFS('CETAK NOTA'!$C$6:$C$21:'CETAK NOTA'!$C$1730:$C$1746,'CETAK NOTA'!$D$6:$D$21:'CETAK NOTA'!$D$1730:$D$1746,E158,'CETAK NOTA'!$B$6:$B$21:'CETAK NOTA'!$B$1730:$B$1746,B158) -> 0 | F158: =SUMIFS('CETAK NOTA'!$C$6:$C$21:'CETAK NOTA'!$C$1730:$C$1746,'CETAK NOTA'!$D$6:$D$21:'CETAK NOTA'!$D$1730:$D$1746,G158,'CETAK NOTA'!$B$6:$B$21:'CETAK NOTA'!$B$1730:$B$1746,B158) -> 0
D159: =SUMIFS('CETAK NOTA'!$C$6:$C$21:'CETAK NOTA'!$C$1730:$C$1746,'CETAK NOTA'!$D$6:$D$21:'CETAK NOTA'!$D$1730:$D$1746,E159,'CETAK NOTA'!$B$6:$B$21:'CETAK NOTA'!$B$1730:$B$1746,B159) -> 0 | F159: =SUMIFS('CETAK NOTA'!$C$6:$C$21:'CETAK NOTA'!$C$1730:$C$1746,'CETAK NOTA'!$D$6:$D$21:'CETAK NOTA'!$D$1730:$D$1746,G159,'CETAK NOTA'!$B$6:$B$21:'CETAK NOTA'!$B$1730:$B$1746,B159) -> 0
D160: =SUMIFS('CETAK NOTA'!$C$6:$C$21:'CETAK NOTA'!$C$1730:$C$1746,'CETAK NOTA'!$D$6:$D$21:'CETAK NOTA'!$D$1730:$D$1746,E160,'CETAK NOTA'!$B$6:$B$21:'CETAK NOTA'!$B$1730:$B$1746,B160) -> 0 | F160: =SUMIFS('CETAK NOTA'!$C$6:$C$21:'CETAK NOTA'!$C$1730:$C$1746,'CETAK NOTA'!$D$6:$D$21:'CETAK NOTA'!$D$1730:$D$1746,G160,'CETAK NOTA'!$B$6:$B$21:'CETAK NOTA'!$B$1730:$B$1746,B160) -> 0
D161: =SUMIFS('CETAK NOTA'!$C$6:$C$21:'CETAK NOTA'!$C$1730:$C$1746,'CETAK NOTA'!$D$6:$D$21:'CETAK NOTA'!$D$1730:$D$1746,E161,'CETAK NOTA'!$B$6:$B$21:'CETAK NOTA'!$B$1730:$B$1746,B161) -> 0 | F161: =SUMIFS('CETAK NOTA'!$C$6:$C$21:'CETAK NOTA'!$C$1730:$C$1746,'CETAK NOTA'!$D$6:$D$21:'CETAK NOTA'!$D$1730:$D$1746,G161,'CETAK NOTA'!$B$6:$B$21:'CETAK NOTA'!$B$1730:$B$1746,B161) -> 0
D162: =SUMIFS('CETAK NOTA'!$C$6:$C$21:'CETAK NOTA'!$C$1730:$C$1746,'CETAK NOTA'!$D$6:$D$21:'CETAK NOTA'!$D$1730:$D$1746,E162,'CETAK NOTA'!$B$6:$B$21:'CETAK NOTA'!$B$1730:$B$1746,B162) -> 0 | F162: =SUMIFS('CETAK NOTA'!$C$6:$C$21:'CETAK NOTA'!$C$1730:$C$1746,'CETAK NOTA'!$D$6:$D$21:'CETAK NOTA'!$D$1730:$D$1746,G162,'CETAK NOTA'!$B$6:$B$21:'CETAK NOTA'!$B$1730:$B$1746,B162) -> 0
D163: =SUMIFS('CETAK NOTA'!$C$6:$C$21:'CETAK NOTA'!$C$1730:$C$1746,'CETAK NOTA'!$D$6:$D$21:'CETAK NOTA'!$D$1730:$D$1746,E163,'CETAK NOTA'!$B$6:$B$21:'CETAK NOTA'!$B$1730:$B$1746,B163) -> 0 | F163: =SUMIFS('CETAK NOTA'!$C$6:$C$21:'CETAK NOTA'!$C$1730:$C$1746,'CETAK NOTA'!$D$6:$D$21:'CETAK NOTA'!$D$1730:$D$1746,G163,'CETAK NOTA'!$B$6:$B$21:'CETAK NOTA'!$B$1730:$B$1746,B163) -> 0
D164: =SUMIFS('CETAK NOTA'!$C$6:$C$21:'CETAK NOTA'!$C$1730:$C$1746,'CETAK NOTA'!$D$6:$D$21:'CETAK NOTA'!$D$1730:$D$1746,E164,'CETAK NOTA'!$B$6:$B$21:'CETAK NOTA'!$B$1730:$B$1746,B164) -> 0 | F164: =SUMIFS('CETAK NOTA'!$C$6:$C$21:'CETAK NOTA'!$C$1730:$C$1746,'CETAK NOTA'!$D$6:$D$21:'CETAK NOTA'!$D$1730:$D$1746,G164,'CETAK NOTA'!$B$6:$B$21:'CETAK NOTA'!$B$1730:$B$1746,B164) -> 0
D165: =SUMIFS('CETAK NOTA'!$C$6:$C$21:'CETAK NOTA'!$C$1730:$C$1746,'CETAK NOTA'!$D$6:$D$21:'CETAK NOTA'!$D$1730:$D$1746,E165,'CETAK NOTA'!$B$6:$B$21:'CETAK NOTA'!$B$1730:$B$1746,B165) -> 0 | F165: =SUMIFS('CETAK NOTA'!$C$6:$C$21:'CETAK NOTA'!$C$1730:$C$1746,'CETAK NOTA'!$D$6:$D$21:'CETAK NOTA'!$D$1730:$D$1746,G165,'CETAK NOTA'!$B$6:$B$21:'CETAK NOTA'!$B$1730:$B$1746,B165) -> 0
D166: =SUMIFS('CETAK NOTA'!$C$6:$C$21:'CETAK NOTA'!$C$1730:$C$1746,'CETAK NOTA'!$D$6:$D$21:'CETAK NOTA'!$D$1730:$D$1746,E166,'CETAK NOTA'!$B$6:$B$21:'CETAK NOTA'!$B$1730:$B$1746,B166) -> 0 | F166: =SUMIFS('CETAK NOTA'!$C$6:$C$21:'CETAK NOTA'!$C$1730:$C$1746,'CETAK NOTA'!$D$6:$D$21:'CETAK NOTA'!$D$1730:$D$1746,G166,'CETAK NOTA'!$B$6:$B$21:'CETAK NOTA'!$B$1730:$B$1746,B166) -> 0
D167: =SUMIFS('CETAK NOTA'!$C$6:$C$21:'CETAK NOTA'!$C$1730:$C$1746,'CETAK NOTA'!$D$6:$D$21:'CETAK NOTA'!$D$1730:$D$1746,E167,'CETAK NOTA'!$B$6:$B$21:'CETAK NOTA'!$B$1730:$B$1746,B167) -> 0 | F167: =SUMIFS('CETAK NOTA'!$C$6:$C$21:'CETAK NOTA'!$C$1730:$C$1746,'CETAK NOTA'!$D$6:$D$21:'CETAK NOTA'!$D$1730:$D$1746,G167,'CETAK NOTA'!$B$6:$B$21:'CETAK NOTA'!$B$1730:$B$1746,B167) -> 0
D168: =SUMIFS('CETAK NOTA'!$C$6:$C$21:'CETAK NOTA'!$C$1730:$C$1746,'CETAK NOTA'!$D$6:$D$21:'CETAK NOTA'!$D$1730:$D$1746,E168,'CETAK NOTA'!$B$6:$B$21:'CETAK NOTA'!$B$1730:$B$1746,B168) -> 0 | F168: =SUMIFS('CETAK NOTA'!$C$6:$C$21:'CETAK NOTA'!$C$1730:$C$1746,'CETAK NOTA'!$D$6:$D$21:'CETAK NOTA'!$D$1730:$D$1746,G168,'CETAK NOTA'!$B$6:$B$21:'CETAK NOTA'!$B$1730:$B$1746,B168) -> 0
D169: =SUMIFS('CETAK NOTA'!$C$6:$C$21:'CETAK NOTA'!$C$1730:$C$1746,'CETAK NOTA'!$D$6:$D$21:'CETAK NOTA'!$D$1730:$D$1746,E169,'CETAK NOTA'!$B$6:$B$21:'CETAK NOTA'!$B$1730:$B$1746,B169) -> 0 | F169: =SUMIFS('CETAK NOTA'!$C$6:$C$21:'CETAK NOTA'!$C$1730:$C$1746,'CETAK NOTA'!$D$6:$D$21:'CETAK NOTA'!$D$1730:$D$1746,G169,'CETAK NOTA'!$B$6:$B$21:'CETAK NOTA'!$B$1730:$B$1746,B169) -> 0
D170: =SUMIFS('CETAK NOTA'!$C$6:$C$21:'CETAK NOTA'!$C$1730:$C$1746,'CETAK NOTA'!$D$6:$D$21:'CETAK NOTA'!$D$1730:$D$1746,E170,'CETAK NOTA'!$B$6:$B$21:'CETAK NOTA'!$B$1730:$B$1746,B170) -> 0 | F170: =SUMIFS('CETAK NOTA'!$C$6:$C$21:'CETAK NOTA'!$C$1730:$C$1746,'CETAK NOTA'!$D$6:$D$21:'CETAK NOTA'!$D$1730:$D$1746,G170,'CETAK NOTA'!$B$6:$B$21:'CETAK NOTA'!$B$1730:$B$1746,B170) -> 0
D171: =SUMIFS('CETAK NOTA'!$C$6:$C$21:'CETAK NOTA'!$C$1730:$C$1746,'CETAK NOTA'!$D$6:$D$21:'CETAK NOTA'!$D$1730:$D$1746,E171,'CETAK NOTA'!$B$6:$B$21:'CETAK NOTA'!$B$1730:$B$1746,B171) -> 0 | F171: =SUMIFS('CETAK NOTA'!$C$6:$C$21:'CETAK NOTA'!$C$1730:$C$1746,'CETAK NOTA'!$D$6:$D$21:'CETAK NOTA'!$D$1730:$D$1746,G171,'CETAK NOTA'!$B$6:$B$21:'CETAK NOTA'!$B$1730:$B$1746,B171) -> 0
D172: =SUMIFS('CETAK NOTA'!$C$6:$C$21:'CETAK NOTA'!$C$1730:$C$1746,'CETAK NOTA'!$D$6:$D$21:'CETAK NOTA'!$D$1730:$D$1746,E172,'CETAK NOTA'!$B$6:$B$21:'CETAK NOTA'!$B$1730:$B$1746,B172) -> 0 | F172: =SUMIFS('CETAK NOTA'!$C$6:$C$21:'CETAK NOTA'!$C$1730:$C$1746,'CETAK NOTA'!$D$6:$D$21:'CETAK NOTA'!$D$1730:$D$1746,G172,'CETAK NOTA'!$B$6:$B$21:'CETAK NOTA'!$B$1730:$B$1746,B172) -> 0
D173: =SUMIFS('CETAK NOTA'!$C$6:$C$21:'CETAK NOTA'!$C$1730:$C$1746,'CETAK NOTA'!$D$6:$D$21:'CETAK NOTA'!$D$1730:$D$1746,E173,'CETAK NOTA'!$B$6:$B$21:'CETAK NOTA'!$B$1730:$B$1746,B173) -> 0 | F173: =SUMIFS('CETAK NOTA'!$C$6:$C$21:'CETAK NOTA'!$C$1730:$C$1746,'CETAK NOTA'!$D$6:$D$21:'CETAK NOTA'!$D$1730:$D$1746,G173,'CETAK NOTA'!$B$6:$B$21:'CETAK NOTA'!$B$1730:$B$1746,B173) -> 0
D174: =SUMIFS('CETAK NOTA'!$C$6:$C$21:'CETAK NOTA'!$C$1730:$C$1746,'CETAK NOTA'!$D$6:$D$21:'CETAK NOTA'!$D$1730:$D$1746,E174,'CETAK NOTA'!$B$6:$B$21:'CETAK NOTA'!$B$1730:$B$1746,B174) -> 0 | F174: =SUMIFS('CETAK NOTA'!$C$6:$C$21:'CETAK NOTA'!$C$1730:$C$1746,'CETAK NOTA'!$D$6:$D$21:'CETAK NOTA'!$D$1730:$D$1746,G174,'CETAK NOTA'!$B$6:$B$21:'CETAK NOTA'!$B$1730:$B$1746,B174) -> 0
D175: =SUMIFS('CETAK NOTA'!$C$6:$C$21:'CETAK NOTA'!$C$1730:$C$1746,'CETAK NOTA'!$D$6:$D$21:'CETAK NOTA'!$D$1730:$D$1746,E175,'CETAK NOTA'!$B$6:$B$21:'CETAK NOTA'!$B$1730:$B$1746,B175) -> 0 | F175: =SUMIFS('CETAK NOTA'!$C$6:$C$21:'CETAK NOTA'!$C$1730:$C$1746,'CETAK NOTA'!$D$6:$D$21:'CETAK NOTA'!$D$1730:$D$1746,G175,'CETAK NOTA'!$B$6:$B$21:'CETAK NOTA'!$B$1730:$B$1746,B175) -> 0
D176: =SUMIFS('CETAK NOTA'!$C$6:$C$21:'CETAK NOTA'!$C$1730:$C$1746,'CETAK NOTA'!$D$6:$D$21:'CETAK NOTA'!$D$1730:$D$1746,E176,'CETAK NOTA'!$B$6:$B$21:'CETAK NOTA'!$B$1730:$B$1746,B176) -> 0 | F176: =SUMIFS('CETAK NOTA'!$C$6:$C$21:'CETAK NOTA'!$C$1730:$C$1746,'CETAK NOTA'!$D$6:$D$21:'CETAK NOTA'!$D$1730:$D$1746,G176,'CETAK NOTA'!$B$6:$B$21:'CETAK NOTA'!$B$1730:$B$1746,B176) -> 0
D177: =SUMIFS('CETAK NOTA'!$C$6:$C$21:'CETAK NOTA'!$C$1730:$C$1746,'CETAK NOTA'!$D$6:$D$21:'CETAK NOTA'!$D$1730:$D$1746,E177,'CETAK NOTA'!$B$6:$B$21:'CETAK NOTA'!$B$1730:$B$1746,B177) -> 0 | F177: =SUMIFS('CETAK NOTA'!$C$6:$C$21:'CETAK NOTA'!$C$1730:$C$1746,'CETAK NOTA'!$D$6:$D$21:'CETAK NOTA'!$D$1730:$D$1746,G177,'CETAK NOTA'!$B$6:$B$21:'CETAK NOTA'!$B$1730:$B$1746,B177) -> 0
D178: =SUMIFS('CETAK NOTA'!$C$6:$C$21:'CETAK NOTA'!$C$1730:$C$1746,'CETAK NOTA'!$D$6:$D$21:'CETAK NOTA'!$D$1730:$D$1746,E178,'CETAK NOTA'!$B$6:$B$21:'CETAK NOTA'!$B$1730:$B$1746,B178) -> 0 | F178: =SUMIFS('CETAK NOTA'!$C$6:$C$21:'CETAK NOTA'!$C$1730:$C$1746,'CETAK NOTA'!$D$6:$D$21:'CETAK NOTA'!$D$1730:$D$1746,G178,'CETAK NOTA'!$B$6:$B$21:'CETAK NOTA'!$B$1730:$B$1746,B178) -> 0
D179: =SUMIFS('CETAK NOTA'!$C$6:$C$21:'CETAK NOTA'!$C$1730:$C$1746,'CETAK NOTA'!$D$6:$D$21:'CETAK NOTA'!$D$1730:$D$1746,E179,'CETAK NOTA'!$B$6:$B$21:'CETAK NOTA'!$B$1730:$B$1746,B179) -> 0 | F179: =SUMIFS('CETAK NOTA'!$C$6:$C$21:'CETAK NOTA'!$C$1730:$C$1746,'CETAK NOTA'!$D$6:$D$21:'CETAK NOTA'!$D$1730:$D$1746,G179,'CETAK NOTA'!$B$6:$B$21:'CETAK NOTA'!$B$1730:$B$1746,B179) -> 0
D180: =SUMIFS('CETAK NOTA'!$C$6:$C$21:'CETAK NOTA'!$C$1730:$C$1746,'CETAK NOTA'!$D$6:$D$21:'CETAK NOTA'!$D$1730:$D$1746,E180,'CETAK NOTA'!$B$6:$B$21:'CETAK NOTA'!$B$1730:$B$1746,B180) -> 0 | F180: =SUMIFS('CETAK NOTA'!$C$6:$C$21:'CETAK NOTA'!$C$1730:$C$1746,'CETAK NOTA'!$D$6:$D$21:'CETAK NOTA'!$D$1730:$D$1746,G180,'CETAK NOTA'!$B$6:$B$21:'CETAK NOTA'!$B$1730:$B$1746,B180) -> 0
D181: =SUMIFS('CETAK NOTA'!$C$6:$C$21:'CETAK NOTA'!$C$1730:$C$1746,'CETAK NOTA'!$D$6:$D$21:'CETAK NOTA'!$D$1730:$D$1746,E181,'CETAK NOTA'!$B$6:$B$21:'CETAK NOTA'!$B$1730:$B$1746,B181) -> 0 | F181: =SUMIFS('CETAK NOTA'!$C$6:$C$21:'CETAK NOTA'!$C$1730:$C$1746,'CETAK NOTA'!$D$6:$D$21:'CETAK NOTA'!$D$1730:$D$1746,G181,'CETAK NOTA'!$B$6:$B$21:'CETAK NOTA'!$B$1730:$B$1746,B181) -> 0
D182: =SUMIFS('CETAK NOTA'!$C$6:$C$21:'CETAK NOTA'!$C$1730:$C$1746,'CETAK NOTA'!$D$6:$D$21:'CETAK NOTA'!$D$1730:$D$1746,E182,'CETAK NOTA'!$B$6:$B$21:'CETAK NOTA'!$B$1730:$B$1746,B182) -> 0 | F182: =SUMIFS('CETAK NOTA'!$C$6:$C$21:'CETAK NOTA'!$C$1730:$C$1746,'CETAK NOTA'!$D$6:$D$21:'CETAK NOTA'!$D$1730:$D$1746,G182,'CETAK NOTA'!$B$6:$B$21:'CETAK NOTA'!$B$1730:$B$1746,B182) -> 0
D183: =SUMIFS('CETAK NOTA'!$C$6:$C$21:'CETAK NOTA'!$C$1730:$C$1746,'CETAK NOTA'!$D$6:$D$21:'CETAK NOTA'!$D$1730:$D$1746,E183,'CETAK NOTA'!$B$6:$B$21:'CETAK NOTA'!$B$1730:$B$1746,B183) -> 0 | F183: =SUMIFS('CETAK NOTA'!$C$6:$C$21:'CETAK NOTA'!$C$1730:$C$1746,'CETAK NOTA'!$D$6:$D$21:'CETAK NOTA'!$D$1730:$D$1746,G183,'CETAK NOTA'!$B$6:$B$21:'CETAK NOTA'!$B$1730:$B$1746,B183) -> 0
D184: =SUMIFS('CETAK NOTA'!$C$6:$C$21:'CETAK NOTA'!$C$1730:$C$1746,'CETAK NOTA'!$D$6:$D$21:'CETAK NOTA'!$D$1730:$D$1746,E184,'CETAK NOTA'!$B$6:$B$21:'CETAK NOTA'!$B$1730:$B$1746,B184) -> 0 | F184: =SUMIFS('CETAK NOTA'!$C$6:$C$21:'CETAK NOTA'!$C$1730:$C$1746,'CETAK NOTA'!$D$6:$D$21:'CETAK NOTA'!$D$1730:$D$1746,G184,'CETAK NOTA'!$B$6:$B$21:'CETAK NOTA'!$B$1730:$B$1746,B184) -> 0
D185: =SUMIFS('CETAK NOTA'!$C$6:$C$21:'CETAK NOTA'!$C$1730:$C$1746,'CETAK NOTA'!$D$6:$D$21:'CETAK NOTA'!$D$1730:$D$1746,E185,'CETAK NOTA'!$B$6:$B$21:'CETAK NOTA'!$B$1730:$B$1746,B185) -> 0 | F185: =SUMIFS('CETAK NOTA'!$C$6:$C$21:'CETAK NOTA'!$C$1730:$C$1746,'CETAK NOTA'!$D$6:$D$21:'CETAK NOTA'!$D$1730:$D$1746,G185,'CETAK NOTA'!$B$6:$B$21:'CETAK NOTA'!$B$1730:$B$1746,B185) -> 0
D186: =SUMIFS('CETAK NOTA'!$C$6:$C$21:'CETAK NOTA'!$C$1730:$C$1746,'CETAK NOTA'!$D$6:$D$21:'CETAK NOTA'!$D$1730:$D$1746,E186,'CETAK NOTA'!$B$6:$B$21:'CETAK NOTA'!$B$1730:$B$1746,B186) -> 0 | F186: =SUMIFS('CETAK NOTA'!$C$6:$C$21:'CETAK NOTA'!$C$1730:$C$1746,'CETAK NOTA'!$D$6:$D$21:'CETAK NOTA'!$D$1730:$D$1746,G186,'CETAK NOTA'!$B$6:$B$21:'CETAK NOTA'!$B$1730:$B$1746,B186) -> 0
D187: =SUMIFS('CETAK NOTA'!$C$6:$C$21:'CETAK NOTA'!$C$1730:$C$1746,'CETAK NOTA'!$D$6:$D$21:'CETAK NOTA'!$D$1730:$D$1746,E187,'CETAK NOTA'!$B$6:$B$21:'CETAK NOTA'!$B$1730:$B$1746,B187) -> 0 | F187: =SUMIFS('CETAK NOTA'!$C$6:$C$21:'CETAK NOTA'!$C$1730:$C$1746,'CETAK NOTA'!$D$6:$D$21:'CETAK NOTA'!$D$1730:$D$1746,G187,'CETAK NOTA'!$B$6:$B$21:'CETAK NOTA'!$B$1730:$B$1746,B187) -> 0
D188: =SUMIFS('CETAK NOTA'!$C$6:$C$21:'CETAK NOTA'!$C$1730:$C$1746,'CETAK NOTA'!$D$6:$D$21:'CETAK NOTA'!$D$1730:$D$1746,E188,'CETAK NOTA'!$B$6:$B$21:'CETAK NOTA'!$B$1730:$B$1746,B188) -> 0 | F188: =SUMIFS('CETAK NOTA'!$C$6:$C$21:'CETAK NOTA'!$C$1730:$C$1746,'CETAK NOTA'!$D$6:$D$21:'CETAK NOTA'!$D$1730:$D$1746,G188,'CETAK NOTA'!$B$6:$B$21:'CETAK NOTA'!$B$1730:$B$1746,B188) -> 0
D189: =SUMIFS('CETAK NOTA'!$C$6:$C$21:'CETAK NOTA'!$C$1730:$C$1746,'CETAK NOTA'!$D$6:$D$21:'CETAK NOTA'!$D$1730:$D$1746,E189,'CETAK NOTA'!$B$6:$B$21:'CETAK NOTA'!$B$1730:$B$1746,B189) -> 0 | F189: =SUMIFS('CETAK NOTA'!$C$6:$C$21:'CETAK NOTA'!$C$1730:$C$1746,'CETAK NOTA'!$D$6:$D$21:'CETAK NOTA'!$D$1730:$D$1746,G189,'CETAK NOTA'!$B$6:$B$21:'CETAK NOTA'!$B$1730:$B$1746,B189) -> 0
D190: =SUMIFS('CETAK NOTA'!$C$6:$C$21:'CETAK NOTA'!$C$1730:$C$1746,'CETAK NOTA'!$D$6:$D$21:'CETAK NOTA'!$D$1730:$D$1746,E190,'CETAK NOTA'!$B$6:$B$21:'CETAK NOTA'!$B$1730:$B$1746,B190) -> 0 | F190: =SUMIFS('CETAK NOTA'!$C$6:$C$21:'CETAK NOTA'!$C$1730:$C$1746,'CETAK NOTA'!$D$6:$D$21:'CETAK NOTA'!$D$1730:$D$1746,G190,'CETAK NOTA'!$B$6:$B$21:'CETAK NOTA'!$B$1730:$B$1746,B190) -> 0
D191: =SUMIFS('CETAK NOTA'!$C$6:$C$21:'CETAK NOTA'!$C$1730:$C$1746,'CETAK NOTA'!$D$6:$D$21:'CETAK NOTA'!$D$1730:$D$1746,E191,'CETAK NOTA'!$B$6:$B$21:'CETAK NOTA'!$B$1730:$B$1746,B191) -> 0 | F191: =SUMIFS('CETAK NOTA'!$C$6:$C$21:'CETAK NOTA'!$C$1730:$C$1746,'CETAK NOTA'!$D$6:$D$21:'CETAK NOTA'!$D$1730:$D$1746,G191,'CETAK NOTA'!$B$6:$B$21:'CETAK NOTA'!$B$1730:$B$1746,B191) -> 0
D192: =SUMIFS('CETAK NOTA'!$C$6:$C$21:'CETAK NOTA'!$C$1730:$C$1746,'CETAK NOTA'!$D$6:$D$21:'CETAK NOTA'!$D$1730:$D$1746,E192,'CETAK NOTA'!$B$6:$B$21:'CETAK NOTA'!$B$1730:$B$1746,B192) -> 0 | F192: =SUMIFS('CETAK NOTA'!$C$6:$C$21:'CETAK NOTA'!$C$1730:$C$1746,'CETAK NOTA'!$D$6:$D$21:'CETAK NOTA'!$D$1730:$D$1746,G192,'CETAK NOTA'!$B$6:$B$21:'CETAK NOTA'!$B$1730:$B$1746,B192) -> 0
D193: =SUMIFS('CETAK NOTA'!$C$6:$C$21:'CETAK NOTA'!$C$1730:$C$1746,'CETAK NOTA'!$D$6:$D$21:'CETAK NOTA'!$D$1730:$D$1746,E193,'CETAK NOTA'!$B$6:$B$21:'CETAK NOTA'!$B$1730:$B$1746,B193) -> 0 | F193: =SUMIFS('CETAK NOTA'!$C$6:$C$21:'CETAK NOTA'!$C$1730:$C$1746,'CETAK NOTA'!$D$6:$D$21:'CETAK NOTA'!$D$1730:$D$1746,G193,'CETAK NOTA'!$B$6:$B$21:'CETAK NOTA'!$B$1730:$B$1746,B193) -> 0
C194: =IF(AND(K194=0,L194=0),"",IF(AND(D194>0,K194>L194),"RM","TK")) ->  | D194: =SUMIFS('CETAK NOTA'!$C$6:$C$21:'CETAK NOTA'!$C$1730:$C$1746,'CETAK NOTA'!$D$6:$D$21:'CETAK NOTA'!$D$1730:$D$1746,E194,'CETAK NOTA'!$B$6:$B$21:'CETAK NOTA'!$B$1730:$B$1746,B194) -> 0 | F194: =SUMIFS('CETAK NOTA'!$C$6:$C$21:'CETAK NOTA'!$C$1730:$C$1746,'CETAK NOTA'!$D$6:$D$21:'CETAK NOTA'!$D$1730:$D$1746,G194,'CETAK NOTA'!$B$6:$B$21:'CETAK NOTA'!$B$1730:$B$1746,B194) -> 0
D195: =SUMIFS('CETAK NOTA'!$C$6:$C$21:'CETAK NOTA'!$C$1730:$C$1746,'CETAK NOTA'!$D$6:$D$21:'CETAK NOTA'!$D$1730:$D$1746,E195,'CETAK NOTA'!$B$6:$B$21:'CETAK NOTA'!$B$1730:$B$1746,B195) -> 0 | F195: =SUMIFS('CETAK NOTA'!$C$6:$C$21:'CETAK NOTA'!$C$1730:$C$1746,'CETAK NOTA'!$D$6:$D$21:'CETAK NOTA'!$D$1730:$D$1746,G195,'CETAK NOTA'!$B$6:$B$21:'CETAK NOTA'!$B$1730:$B$1746,B195) -> 0
D196: =SUMIFS('CETAK NOTA'!$C$6:$C$21:'CETAK NOTA'!$C$1730:$C$1746,'CETAK NOTA'!$D$6:$D$21:'CETAK NOTA'!$D$1730:$D$1746,E196,'CETAK NOTA'!$B$6:$B$21:'CETAK NOTA'!$B$1730:$B$1746,B196) -> 0 | F196: =SUMIFS('CETAK NOTA'!$C$6:$C$21:'CETAK NOTA'!$C$1730:$C$1746,'CETAK NOTA'!$D$6:$D$21:'CETAK NOTA'!$D$1730:$D$1746,G196,'CETAK NOTA'!$B$6:$B$21:'CETAK NOTA'!$B$1730:$B$1746,B196) -> 0
D197: =SUMIFS('CETAK NOTA'!$C$6:$C$21:'CETAK NOTA'!$C$1730:$C$1746,'CETAK NOTA'!$D$6:$D$21:'CETAK NOTA'!$D$1730:$D$1746,E197,'CETAK NOTA'!$B$6:$B$21:'CETAK NOTA'!$B$1730:$B$1746,B197) -> 0 | F197: =SUMIFS('CETAK NOTA'!$C$6:$C$21:'CETAK NOTA'!$C$1730:$C$1746,'CETAK NOTA'!$D$6:$D$21:'CETAK NOTA'!$D$1730:$D$1746,G197,'CETAK NOTA'!$B$6:$B$21:'CETAK NOTA'!$B$1730:$B$1746,B197) -> 0
D198: =SUMIFS('CETAK NOTA'!$C$6:$C$21:'CETAK NOTA'!$C$1730:$C$1746,'CETAK NOTA'!$D$6:$D$21:'CETAK NOTA'!$D$1730:$D$1746,E198,'CETAK NOTA'!$B$6:$B$21:'CETAK NOTA'!$B$1730:$B$1746,B198) -> 0 | F198: =SUMIFS('CETAK NOTA'!$C$6:$C$21:'CETAK NOTA'!$C$1730:$C$1746,'CETAK NOTA'!$D$6:$D$21:'CETAK NOTA'!$D$1730:$D$1746,G198,'CETAK NOTA'!$B$6:$B$21:'CETAK NOTA'!$B$1730:$B$1746,B198) -> 0
D199: =SUMIFS('CETAK NOTA'!$C$6:$C$21:'CETAK NOTA'!$C$1730:$C$1746,'CETAK NOTA'!$D$6:$D$21:'CETAK NOTA'!$D$1730:$D$1746,E199,'CETAK NOTA'!$B$6:$B$21:'CETAK NOTA'!$B$1730:$B$1746,B199) -> 0 | F199: =SUMIFS('CETAK NOTA'!$C$6:$C$21:'CETAK NOTA'!$C$1730:$C$1746,'CETAK NOTA'!$D$6:$D$21:'CETAK NOTA'!$D$1730:$D$1746,G199,'CETAK NOTA'!$B$6:$B$21:'CETAK NOTA'!$B$1730:$B$1746,B199) -> 0
D200: =SUMIFS('CETAK NOTA'!$C$6:$C$21:'CETAK NOTA'!$C$1730:$C$1746,'CETAK NOTA'!$D$6:$D$21:'CETAK NOTA'!$D$1730:$D$1746,E200,'CETAK NOTA'!$B$6:$B$21:'CETAK NOTA'!$B$1730:$B$1746,B200) -> 0 | F200: =SUMIFS('CETAK NOTA'!$C$6:$C$21:'CETAK NOTA'!$C$1730:$C$1746,'CETAK NOTA'!$D$6:$D$21:'CETAK NOTA'!$D$1730:$D$1746,G200,'CETAK NOTA'!$B$6:$B$21:'CETAK NOTA'!$B$1730:$B$1746,B200) -> 0
... 273 more rows

Sheet PRICELIST
A1: CODE | B1: ALL ITEM | C1: CODE | D1: PRICE | E1: UNIT | F1: Q | G1: HARGA PCS | H1: MODAL PCS | I1: MODAL DOS | J1: PRICELIST | K1: NO | L1: NAMA | M1: KOTA
A2: 1 | B2: BUKU TULIS | C2: 1 | D2: 582000 | E2: DOS | F2: 20 | G2: =D2/F2 -> 29100 | H2: =I2/F2 -> 26631 | I2: =J2-(J2*9%)+3000 -> 532620 | J2: 582000 | K2: 1 | L2: SUMBER SUKSES | M2: JATIARUM
A3: 2 | B3: PENSIL | C3: 2 | D3: 655800 | E3: DOS | F3: 6 | G3: =D3/F3 -> 109300 | H3: =I3/F3 -> 100509.5 | I3: =J3-(J3*8.5%)+3000 -> 603057 | J3: 655800 | K3: 2 | L3: SUMBER MAKMUR | M3: JATIROTO
A4: 3 | B4: PENGGARIS | C4: 3 | D4: 532000 | E4: DOS | F4: 4 | G4: 133000 | H4: 123775 | I4: =J4-(J4*7.5%)+3000 -> 495100 | J4: 532000 | K4: 3 | L4: SUMBER HIDUP | M4: JATIMANUNGGAL
A5: 4 | B5: PENGHAPUS | C5: 4 | D5: 529000 | E5: DOS | F5: 2 | G5: 264500 | H5: 246162.5 | I5: =J5-(J5*7.5%)+3000 -> 492325 | J5: 529000
A6: 5 | B6: BOLPOIN | C6: 5 | D6: 518000 | E6: DOS | F6: 20 | G6: 25900 | H6: 23848.5 | I6: =J6-(J6*8.5%)+3000 -> 476970 | J6: 518000
A7: 6 | B7: STAPLER | C7: 6 | D7: 570600 | E7: DOS | F7: 6 | G7: 95100 | H7: 87041 | I7: =J7-(J7*9%)+3000 -> 522246 | J7: 570600
A8: 7 | B8: ISOLASI | C8: 7 | D8: 612000 | E8: DOS | F8: 20 | G8: 30600 | H8: 27843 | I8: =J8-(J8*9.5%)+3000 -> 556860 | J8: 612000
